Organisation name,Organisation Code,Directorate,Service Category label,Service Category code,Supplier name,Payment date,Transaction number,Net Amount,Purpose of spend,Procurement classification
Southend-on-Sea Borough Council,http://opendatacommunities.org/id/unitary-authority/southend,ED Growth & Housing,Planning Services,5641,Wix.Com 1057253517,01/06/2023,12061160,27,domain for 99 by 19 southend,Digital Goods - Applications (Excludes Games) (5817)
Southend-on-Sea Borough Council,http://opendatacommunities.org/id/unitary-authority/southend,"ED Strategy, Change & Governance",Central Services to the Public,7140,Tvlicensing.Co.Uk,01/06/2023,12061160,159,renew of tv license for civic 1,Mgmt/Consult/Public Rel Ser (7392)
Southend-on-Sea Borough Council,http://opendatacommunities.org/id/unitary-authority/southend,ED Children & Public Health,Children And Education Services,3692,Pgl Travel,01/06/2023,12061160,419,"REDACTED PERSONAL DATA WAS A WEEK AWAY FOR A CLA , WHILE LOCATING A MORE PERMAMENT CARER FOR HIM, THIS WAS AGREED BY H *",Travel Agencies (4722)
Southend-on-Sea Borough Council,http://opendatacommunities.org/id/unitary-authority/southend,ED Adults & Communities,Cultural And Related Services,4256,Lyreco UK Limited,01/06/2023,12061160,63.92,Plastic zip wallets and cardboard poster tubes for transporting posters and documents between librar *,Stationery Stores (5943)
Southend-on-Sea Borough Council,http://opendatacommunities.org/id/unitary-authority/southend,ED Adults & Communities,Cultural And Related Services,4015,Ga Rayleigh Station,01/06/2023,12061160,5,Travel to V&A London for DATS Meeting - car parking at train station.,"Parking Lots, Meters, Garages (7523)"
Southend-on-Sea Borough Council,http://opendatacommunities.org/id/unitary-authority/southend,ED Adults & Communities,Cultural And Related Services,4015,Greater Anglia T/o,01/06/2023,12061160,18.7,Travel to V&A London for DATS Meeting - train travel with railcard.,Passenger Railways (4112)
Southend-on-Sea Borough Council,http://opendatacommunities.org/id/unitary-authority/southend,ED Children & Public Health,Children And Education Services,3030,Asda Superstore,01/06/2023,12061160,7.5,Resources for family centre sessions,Grocery Stores/Supermarkets (5411)
Southend-on-Sea Borough Council,http://opendatacommunities.org/id/unitary-authority/southend,ED Children & Public Health,Children And Education Services,3396,Starbucks Coffee,01/06/2023,12061160,4.55,Lunch after school for IH- CIN.,Fast Food Restaurants (5814)
Southend-on-Sea Borough Council,http://opendatacommunities.org/id/unitary-authority/southend,ED Children & Public Health,Children And Education Services,3396,Starbucks Coffee,01/06/2023,12061160,5.05,Lunch after school for IH- CIN.,Fast Food Restaurants (5814)
Southend-on-Sea Borough Council,http://opendatacommunities.org/id/unitary-authority/southend,ED Children & Public Health,Children And Education Services,3396,Spar,01/06/2023,12061160,10,Phone credit for looked after child MG,Grocery Stores/Supermarkets (5411)
Southend-on-Sea Borough Council,http://opendatacommunities.org/id/unitary-authority/southend,ED Children & Public Health,Children And Education Services,3396,Starbucks Coffee,01/06/2023,12061160,9.15,Lunch with MG- looked after child.,Fast Food Restaurants (5814)
Southend-on-Sea Borough Council,http://opendatacommunities.org/id/unitary-authority/southend,ED Children & Public Health,Children And Education Services,3396,Starbucks Coffee,01/06/2023,12061160,5.05,Lunch with MG- looked after child.,Fast Food Restaurants (5814)
Southend-on-Sea Borough Council,http://opendatacommunities.org/id/unitary-authority/southend,ED Children & Public Health,Children And Education Services,3030,Tesco Pfs 3236,01/06/2023,12061160,4.95,Snack for Family centres,Service Stations (5541)
Southend-on-Sea Borough Council,http://opendatacommunities.org/id/unitary-authority/southend,ED Children & Public Health,Children And Education Services,3445,Www.Papajohn S.Co.Uk,01/06/2023,12061160,95.69,This has been very challenging. No receipt was received with the order. I have been into the store t *,Fast Food Restaurants (5814)
Southend-on-Sea Borough Council,http://opendatacommunities.org/id/unitary-authority/southend,ED Adults & Communities,Cultural And Related Services,4120,Wilko Retail Limited,01/06/2023,12061160,15,Paint for decorating the beach huts at the Pier Head.,Misc Gen Merchandise - Def (5399)
Southend-on-Sea Borough Council,http://opendatacommunities.org/id/unitary-authority/southend,ED Children & Public Health,Children And Education Services,3183,Amznmktplace,01/06/2023,12061160,95.01,Two carry cases with wheels for SEND Team meetings and events to carry paraphernalia such as booklet *,Misc Speciality Retail (5999)
Southend-on-Sea Borough Council,http://opendatacommunities.org/id/unitary-authority/southend,"ED Strategy, Change & Governance",Central Services to the Public,2190,Studio 2000 Photog,01/06/2023,12061160,102.2,photographs for our british citizens,Camera & Photo Supply Store (5946)
Southend-on-Sea Borough Council,http://opendatacommunities.org/id/unitary-authority/southend,ED Adults & Communities,Central Services to the Public,1455,Find A Will,01/06/2023,12061160,3,probate searches for two clients,Professional Services - Def (8999)
Southend-on-Sea Borough Council,http://opendatacommunities.org/id/unitary-authority/southend,ED Adults & Communities,Cultural And Related Services,4120,Police Supplies,01/06/2023,12061160,73,Uniform patrol boots,Misc Apparel/Access Shops (5699)
Southend-on-Sea Borough Council,http://opendatacommunities.org/id/unitary-authority/southend,ED Children & Public Health,Children And Education Services,3290,Sumup *shahid Siddique,01/06/2023,12061160,10.3,Taxi hospital to station (Bradford Interchange),Taxicabs/Limousines (4121)
Southend-on-Sea Borough Council,http://opendatacommunities.org/id/unitary-authority/southend,ED Children & Public Health,Children And Education Services,3290,Pret A Manger,01/06/2023,12061160,12.24,Lunch on Former Relevant Visit to Bradford,Eating Places/Restaurants (5812)
Southend-on-Sea Borough Council,http://opendatacommunities.org/id/unitary-authority/southend,ED Children & Public Health,Children And Education Services,3396,McDonalds 859,01/06/2023,12061160,2.98,McFlurry's for CM & RM on closing visit,Fast Food Restaurants (5814)
Southend-on-Sea Borough Council,http://opendatacommunities.org/id/unitary-authority/southend,ED Children & Public Health,Public Health,8700,United Kingdom Health Sec,01/06/2023,12061160,250,Conferences Expenses for Public Health.No receipt available from supplier,Med/Health Services - Def (8099)
Southend-on-Sea Borough Council,http://opendatacommunities.org/id/unitary-authority/southend,ED Adults & Communities,Cultural And Related Services,4256,Amznmktplace,01/06/2023,12061160,22.99,Special colouring pens for organised event,Misc Speciality Retail (5999)
Southend-on-Sea Borough Council,http://opendatacommunities.org/id/unitary-authority/southend,ED Children & Public Health,Children And Education Services,3099,Amznmktplace,01/06/2023,12061160,26.83,Wipe board for SYC office for staff comms,Misc Speciality Retail (5999)
Southend-on-Sea Borough Council,http://opendatacommunities.org/id/unitary-authority/southend,ED Adults & Communities,Cultural And Related Services,4120,Tesco Stores 6026,01/06/2023,12061160,14.3,Refreshments for team meeting.,Grocery Stores/Supermarkets (5411)
Southend-on-Sea Borough Council,http://opendatacommunities.org/id/unitary-authority/southend,ED Growth & Housing,Planning Services,5641,Trainline,01/06/2023,12061160,-2.4,Credit Voucher Trainline,Passenger Railways (4112)
Southend-on-Sea Borough Council,http://opendatacommunities.org/id/unitary-authority/southend,ED Adults & Communities,Cultural And Related Services,4225,Wix.Com 1057514053,01/06/2023,12061160,10.5,Wix - Halloween Parade website monthly fee.,Digital Goods - Applications (Excludes Games) (5817)
Southend-on-Sea Borough Council,http://opendatacommunities.org/id/unitary-authority/southend,ED Adults & Communities,Cultural And Related Services,4055,Ups Ltd,01/06/2023,12061160,16.79,Delivery of edition,Courier Services (4215)
Southend-on-Sea Borough Council,http://opendatacommunities.org/id/unitary-authority/southend,,,-,The Ticketfactory,01/06/2023,12061160,36.85,car parking for hampton court show,Theatrical Producers (7922)
Southend-on-Sea Borough Council,http://opendatacommunities.org/id/unitary-authority/southend,ED Children & Public Health,Children And Education Services,3792,Bkg*hotel At Booking.C,01/06/2023,12061160,203.5,REDACTED PERSONAL DATA Team Manager agreed REDACTED PERSONAL DATA,Travel Agencies (4722)
Southend-on-Sea Borough Council,http://opendatacommunities.org/id/unitary-authority/southend,ED Adults & Communities,Cultural And Related Services,4263,Amznmktplace,01/06/2023,12061160,49.99,Humidifier for use by staff in unventilated staff areas in Shoeburyness Library (purchase requested *,Misc Speciality Retail (5999)
Southend-on-Sea Borough Council,http://opendatacommunities.org/id/unitary-authority/southend,ED Children & Public Health,Children And Education Services,3396,Zettle_*castle Point Boro,01/06/2023,12061160,8.2,REFRESHMENTS FOR 2 YOUNG PEOPLE DURING POSITIVE ACTIVITIES - RS & RS,Misc Speciality Retail (5999)
Southend-on-Sea Borough Council,http://opendatacommunities.org/id/unitary-authority/southend,ED Children & Public Health,Children And Education Services,3396,Qustodio,01/06/2023,12061160,59.46,PHONE APPLICATION FOR MOTHER TO USE A PARENTAL CONTROL ON DEVICES.,Computer Software Stores (5734)
Southend-on-Sea Borough Council,http://opendatacommunities.org/id/unitary-authority/southend,ED Children & Public Health,Children And Education Services,3030,Asda Superstore,01/06/2023,12061160,10.1,Resources for family centre sessions,Grocery Stores/Supermarkets (5411)
Southend-on-Sea Borough Council,http://opendatacommunities.org/id/unitary-authority/southend,ED Children & Public Health,Children And Education Services,3396,Wilmas,01/06/2023,12061160,5.95,drink for KD as part of postive activity,Bakeries (5462)
Southend-on-Sea Borough Council,http://opendatacommunities.org/id/unitary-authority/southend,ED Children & Public Health,Children And Education Services,3441,Favorite Chicken,01/06/2023,12061160,22.97,refreshments for young person as a positive activity.,Fast Food Restaurants (5814)
Southend-on-Sea Borough Council,http://opendatacommunities.org/id/unitary-authority/southend,ED Adults & Communities,Cultural And Related Services,4045,The Range,01/06/2023,12061160,14.45,"Supplies for preparation work, ready for the REDACTED PERSONAL DATA exhibition at Beecroft Art Gallery.",Misc Home Furnishing (5719)
Southend-on-Sea Borough Council,http://opendatacommunities.org/id/unitary-authority/southend,ED Adults & Communities,Cultural And Related Services,4055,The Beachfield Hotel,01/06/2023,12061160,5.44,Refreshments as part of Cornwall visit for REDACTED PERSONAL DATA and REDACTED PERSONAL DATA,Lodging/Hotels/Motels/Resorts (7011)
Southend-on-Sea Borough Council,http://opendatacommunities.org/id/unitary-authority/southend,ED Adults & Communities,Cultural And Related Services,4055,The Beach Club,01/06/2023,12061160,109,Hotel accommodation for Cornwall visit,Lodging/Hotels/Motels/Resorts (7011)
Southend-on-Sea Borough Council,http://opendatacommunities.org/id/unitary-authority/southend,ED Adults & Communities,Cultural And Related Services,4055,The Beach Club,01/06/2023,12061160,109,Hotel accommodation for Cornwall visit,Lodging/Hotels/Motels/Resorts (7011)
Southend-on-Sea Borough Council,http://opendatacommunities.org/id/unitary-authority/southend,ED Adults & Communities,Cultural And Related Services,4055,Gwr Food On Train,01/06/2023,12061160,100.5,Cost of Sleeper berth for R&D trip to penzance,Passenger Railways (4112)
Southend-on-Sea Borough Council,http://opendatacommunities.org/id/unitary-authority/southend,ED Adults & Communities,Cultural And Related Services,4055,Gwr Food On Train,01/06/2023,12061160,100.5,Cost of Sleeper berth for R&D trip to penzance,Passenger Railways (4112)
Southend-on-Sea Borough Council,http://opendatacommunities.org/id/unitary-authority/southend,ED Children & Public Health,Children And Education Services,3249,Iceland Foods Canvey Isla,01/06/2023,12061160,13.69,Snacks for YC environmental day,Grocery Stores/Supermarkets (5411)
Southend-on-Sea Borough Council,http://opendatacommunities.org/id/unitary-authority/southend,ED Children & Public Health,Children And Education Services,3249,Bean And Boy Ltd T/A Marg,01/06/2023,12061160,180,Bath bomb workshop children in care,Florist Supplies/Nursery Stock (5193)
Southend-on-Sea Borough Council,http://opendatacommunities.org/id/unitary-authority/southend,ED Children & Public Health,Children And Education Services,3290,Rectory Lane West,01/06/2023,12061160,7.5,Parking for training and development day,"Parking Lots, Meters, Garages (7523)"
Southend-on-Sea Borough Council,http://opendatacommunities.org/id/unitary-authority/southend,ED Children & Public Health,Children And Education Services,3471,Lidl Gb,01/06/2023,12061160,3.6,food for syc cafe,Grocery Stores/Supermarkets (5411)
Southend-on-Sea Borough Council,http://opendatacommunities.org/id/unitary-authority/southend,ED Children & Public Health,Children And Education Services,3099,Lidl Gb,01/06/2023,12061160,6.48,for for youth work at syc,Grocery Stores/Supermarkets (5411)
Southend-on-Sea Borough Council,http://opendatacommunities.org/id/unitary-authority/southend,ED Children & Public Health,Children And Education Services,3471,Lidl Gb,01/06/2023,12061160,46.1,food for syc cafe,Grocery Stores/Supermarkets (5411)
Southend-on-Sea Borough Council,http://opendatacommunities.org/id/unitary-authority/southend,ED Neighbourhoods & Environment,Environmental And Regulatory Services,4575,Trainline.Com,01/06/2023,12061160,60.39,uni exam required travel for staff member authorised by manager,Passenger Railways (4112)
Southend-on-Sea Borough Council,http://opendatacommunities.org/id/unitary-authority/southend,ED Children & Public Health,Children And Education Services,3099,Amznmktplace,01/06/2023,12061160,44.99,Large plastic wood look storage box to replace one broken by young person in the MPR at SYC to store *,Misc Speciality Retail (5999)
Southend-on-Sea Borough Council,http://opendatacommunities.org/id/unitary-authority/southend,ED Adults & Communities,Cultural And Related Services,4120,Amznmktplace,01/06/2023,12061160,2.98,New Pier night watchman phone case,Misc Speciality Retail (5999)
Southend-on-Sea Borough Council,http://opendatacommunities.org/id/unitary-authority/southend,ED Adults & Communities,Cultural And Related Services,4245,Amznmktplace,01/06/2023,12061160,10.29,Paper bags for VIC,Misc Speciality Retail (5999)
Southend-on-Sea Borough Council,http://opendatacommunities.org/id/unitary-authority/southend,ED Adults & Communities,Cultural And Related Services,4115,Amznmktplace,01/06/2023,12061160,11.99,Kettle for Foreshore outpost Two Tree Island,Misc Speciality Retail (5999)
Southend-on-Sea Borough Council,http://opendatacommunities.org/id/unitary-authority/southend,ED Adults & Communities,Cultural And Related Services,4115,Amznmktplace,01/06/2023,12061160,22.2,Gas cartridges for stove on the foreshore out post Two Tree Island.,Misc Speciality Retail (5999)
Southend-on-Sea Borough Council,http://opendatacommunities.org/id/unitary-authority/southend,ED Adults & Communities,Cultural And Related Services,4120,Amznmktplace,01/06/2023,12061160,13.07,Folders for train sheets on the pier,Misc Speciality Retail (5999)
Southend-on-Sea Borough Council,http://opendatacommunities.org/id/unitary-authority/southend,ED Adults & Communities,Cultural And Related Services,7515,Bp West Street Convenienc,01/06/2023,12061160,100,Purchaase of diesel for works van REDACTED PERSONAL DATA,Service Stations (5541)
Southend-on-Sea Borough Council,http://opendatacommunities.org/id/unitary-authority/southend,ED Children & Public Health,Children And Education Services,3396,McDonalds,01/06/2023,12061160,14.72,REFRESHMENTS FOR 2 YOUNG PEOPLE DURING POSITIVE ACTIVITIES - RS & RS,Fast Food Restaurants (5814)
Southend-on-Sea Borough Council,http://opendatacommunities.org/id/unitary-authority/southend,ED Children & Public Health,Children And Education Services,3396,McDonalds,01/06/2023,12061160,3.95,REFRESHMENTS FOR 2 YOUNG PEOPLE DURING POSITIVE ACTIVITIES - RS & RS,Fast Food Restaurants (5814)
Southend-on-Sea Borough Council,http://opendatacommunities.org/id/unitary-authority/southend,"ED Strategy, Change & Governance",Central Services to the Public,7140,Aquaplus Uk,01/06/2023,12061160,180,bottled water for civic tower,Stationery Stores (5943)
Southend-on-Sea Borough Council,http://opendatacommunities.org/id/unitary-authority/southend,ED Children & Public Health,Children And Education Services,3396,McDonalds,01/06/2023,12061160,2.99,FCK Drinks purchase for young person working with AIPT Early Help,Fast Food Restaurants (5814)
Southend-on-Sea Borough Council,http://opendatacommunities.org/id/unitary-authority/southend,ED Children & Public Health,Children And Education Services,3396,McDonalds,01/06/2023,12061160,1.89,FCK Drinks purchase for young person working with AIPT Early Help,Fast Food Restaurants (5814)
Southend-on-Sea Borough Council,http://opendatacommunities.org/id/unitary-authority/southend,ED Children & Public Health,Children And Education Services,3396,McDonalds,01/06/2023,12061160,7.21,FCK open to Early Help AIPTLunch purchased,Fast Food Restaurants (5814)
Southend-on-Sea Borough Council,http://opendatacommunities.org/id/unitary-authority/southend,ED Children & Public Health,Children And Education Services,3396,McDonalds,01/06/2023,12061160,9,JG Young person open to AIPT Early Help,Fast Food Restaurants (5814)
Southend-on-Sea Borough Council,http://opendatacommunities.org/id/unitary-authority/southend,"ED Strategy, Change & Governance",Central Services to the Public,7145,Amznmktplace,01/06/2023,12061160,13.95,Stationery - Mayor's Office,Misc Speciality Retail (5999)
Southend-on-Sea Borough Council,http://opendatacommunities.org/id/unitary-authority/southend,"ED Strategy, Change & Governance",Central Services to the Public,2045,Facebk *cpuxjrxnp2,01/06/2023,12061160,128.39,Various FB campaigns,Advertising Services (7311)
Southend-on-Sea Borough Council,http://opendatacommunities.org/id/unitary-authority/southend,ED Children & Public Health,Children And Education Services,3492,Hm Courts & Tribun,01/06/2023,12061160,140,"REDACTED PERSONAL DATA plus siblings-to pay court fees for parent of 3, who we are supporting as NRPF. 3891",Govt Serv - Default (9399)
Southend-on-Sea Borough Council,http://opendatacommunities.org/id/unitary-authority/southend,ED Children & Public Health,Children And Education Services,3692,Sumup *ac Taxi,01/06/2023,12061160,235,REDACTED PERSONAL DATA travelled with mother & child to a parent/child unit,Taxicabs/Limousines (4121)
Southend-on-Sea Borough Council,http://opendatacommunities.org/id/unitary-authority/southend,ED Adults & Communities,Cultural And Related Services,4256,Findel Education,01/06/2023,12061160,17.54,Paper for the Herds in the City display,Other Direct Marketers (5969)
Southend-on-Sea Borough Council,http://opendatacommunities.org/id/unitary-authority/southend,ED Adults & Communities,Cultural And Related Services,4256,Www.Papermilldirect.Co,01/06/2023,12061160,64.8,Paper for Herds in the City display,Book Stores (5942)
Southend-on-Sea Borough Council,http://opendatacommunities.org/id/unitary-authority/southend,"ED Strategy, Change & Governance",Central Services to the Public,7096,Amznmktplace,01/06/2023,12061160,10.58, of notepads for staff in the Contact Centre.,Misc Speciality Retail (5999)
Southend-on-Sea Borough Council,http://opendatacommunities.org/id/unitary-authority/southend,ED Children & Public Health,Children And Education Services,3290,P Westcliff To,01/06/2023,12061160,64.6,Train tickets to attend court,Passenger Railways (4112)
Southend-on-Sea Borough Council,http://opendatacommunities.org/id/unitary-authority/southend,ED Adults & Communities,Adult Social Care,1180,Greaterangliacom,01/06/2023,12061160,32.3,Travel to Vauxhall London to attend university lectures,Passenger Railways (4112)
Southend-on-Sea Borough Council,http://opendatacommunities.org/id/unitary-authority/southend,ED Neighbourhoods & Environment,Central Services to the Public,7175,Dvla Vehicle Tax,01/06/2023,12061160,320,12 month tax for REDACTED PERSONAL DATA,Tax Payments (9311)
Southend-on-Sea Borough Council,http://opendatacommunities.org/id/unitary-authority/southend,ED Neighbourhoods & Environment,Central Services to the Public,7175,Dvla Vehicle Tax,01/06/2023,12061160,320,12 month tax for REDACTED PERSONAL DATA,Tax Payments (9311)
Southend-on-Sea Borough Council,http://opendatacommunities.org/id/unitary-authority/southend,ED Neighbourhoods & Environment,Central Services to the Public,7175,Dvla Vehicle Tax,01/06/2023,12061160,320,12 month tax for REDACTED PERSONAL DATA,Tax Payments (9311)
Southend-on-Sea Borough Council,http://opendatacommunities.org/id/unitary-authority/southend,ED Neighbourhoods & Environment,Central Services to the Public,7175,Dvla Vehicle Tax,01/06/2023,12061160,320,12 months tax for REDACTED PERSONAL DATA,Tax Payments (9311)
Southend-on-Sea Borough Council,http://opendatacommunities.org/id/unitary-authority/southend,ED Children & Public Health,Children And Education Services,3265,Facebk Byq39rptk2,01/06/2023,12061160,400,Paid targeted Facebook/Insta advertising to raise awareness and drive prospective foster carer enqui *,Advertising Services (7311)
Southend-on-Sea Borough Council,http://opendatacommunities.org/id/unitary-authority/southend,ED Children & Public Health,Children And Education Services,3396,Starbucks Coffee,01/06/2023,12061160,4.55,Breakfast for MG- Looked after child.,Fast Food Restaurants (5814)
Southend-on-Sea Borough Council,http://opendatacommunities.org/id/unitary-authority/southend,ED Children & Public Health,Children And Education Services,3396,Starbucks Coffee,01/06/2023,12061160,5.05,Breakfast for MG- Looked after child.,Fast Food Restaurants (5814)
Southend-on-Sea Borough Council,http://opendatacommunities.org/id/unitary-authority/southend,ED Children & Public Health,Children And Education Services,3441,Teamsport Basildon,01/06/2023,12061160,11.85,refreshments for young person go karts,Member Clubs/Sport/Rec/Golf (7997)
Southend-on-Sea Borough Council,http://opendatacommunities.org/id/unitary-authority/southend,ED Children & Public Health,Children And Education Services,3441,Teamsport Basildon,01/06/2023,12061160,88.8,Go Karts activity for young person positive activity,Member Clubs/Sport/Rec/Golf (7997)
Southend-on-Sea Borough Council,http://opendatacommunities.org/id/unitary-authority/southend,ED Adults & Communities,Cultural And Related Services,4055,The Beachfield Hotel,01/06/2023,12061160,26.29,Breakfast for REDACTED PERSONAL DATA and REDACTED PERSONAL DATA while on Cornwall gallery visit,Lodging/Hotels/Motels/Resorts (7011)
Southend-on-Sea Borough Council,http://opendatacommunities.org/id/unitary-authority/southend,ED Children & Public Health,Children And Education Services,3492,Hm Passport Office,01/06/2023,12061160,53.5,Passport COR,Govt Serv - Default (9399)
Southend-on-Sea Borough Council,http://opendatacommunities.org/id/unitary-authority/southend,ED Children & Public Health,Children And Education Services,3492,Hm Passport Office,01/06/2023,12061160,53.5,Passport CT,Govt Serv - Default (9399)
Southend-on-Sea Borough Council,http://opendatacommunities.org/id/unitary-authority/southend,ED Children & Public Health,Children And Education Services,3492,Hm Passport Office,01/06/2023,12061160,53.5,Passport AOR,Govt Serv - Default (9399)
Southend-on-Sea Borough Council,http://opendatacommunities.org/id/unitary-authority/southend,ED Adults & Communities,Cultural And Related Services,4055,Aunty May,01/06/2023,12061160,8.6,Cost of lunch for myself and colleague on work trip.,Eating Places/Restaurants (5812)
Southend-on-Sea Borough Council,http://opendatacommunities.org/id/unitary-authority/southend,ED Children & Public Health,Children And Education Services,3030,Amznmktplace,01/06/2023,12061160,11.97,paper cups for water machine at centre place reception,Misc Speciality Retail (5999)
Southend-on-Sea Borough Council,http://opendatacommunities.org/id/unitary-authority/southend,ED Adults & Communities,Cultural And Related Services,4055,Amznmktplace,01/06/2023,12061160,11.61,Book for research for exhibition next year,Misc Speciality Retail (5999)
Southend-on-Sea Borough Council,http://opendatacommunities.org/id/unitary-authority/southend,ED Adults & Communities,Cultural And Related Services,4055,Www.Avantiwestcoast.Co,01/06/2023,12061160,68,Train ticket to Liverpool to visit Liverpool Biennial,Passenger Railways (4112)
Southend-on-Sea Borough Council,http://opendatacommunities.org/id/unitary-authority/southend,ED Adults & Communities,Adult Social Care,1180,Travelodge Gb0000,01/06/2023,12061160,141.75,Hotel and WIFI costs for university apprenticeship training week June 2023,Travelodge (3615)
Southend-on-Sea Borough Council,http://opendatacommunities.org/id/unitary-authority/southend,ED Adults & Communities,Central Services to the Public,2041,Park Inn Senpd F&b,01/06/2023,12061160,240,Room booking at Park Inn hotel for English classes for Afghan guests,Park Inns International (3553)
Southend-on-Sea Borough Council,http://opendatacommunities.org/id/unitary-authority/southend,ED Children & Public Health,Children And Education Services,3492,Comparemanvan,01/06/2023,12061160,186.27,Reciept now attached,Motor Freight Carriers (4214)
Southend-on-Sea Borough Council,http://opendatacommunities.org/id/unitary-authority/southend,ED Adults & Communities,Cultural And Related Services,4030,Sumup *daisy M Ceramics,01/06/2023,12061160,82.5,Retail supplies for Priory museum,Misc Speciality Retail (5999)
Southend-on-Sea Borough Council,http://opendatacommunities.org/id/unitary-authority/southend,ED Neighbourhoods & Environment,Environmental And Regulatory Services,4575,Britannia Safety Limited,01/06/2023,12061160,22.49,Wellies bought for staff member to conduct job,Shoe Stores (5661)
Southend-on-Sea Borough Council,http://opendatacommunities.org/id/unitary-authority/southend,"ED Strategy, Change & Governance",Central Services to the Public,7145,Amznmktplace,01/06/2023,12061160,14.44,Stationery - Mayor's Office,Misc Speciality Retail (5999)
Southend-on-Sea Borough Council,http://opendatacommunities.org/id/unitary-authority/southend,ED Finance & Resources,Central Services to the Public,7110,Amznmktplace,01/06/2023,12061160,28.04, of laser measure,Misc Speciality Retail (5999)
Southend-on-Sea Borough Council,http://opendatacommunities.org/id/unitary-authority/southend,ED Children & Public Health,Children And Education Services,3396,McDonalds,01/06/2023,12061160,3.1,Lunch for KS. Open as CIN.,Fast Food Restaurants (5814)
Southend-on-Sea Borough Council,http://opendatacommunities.org/id/unitary-authority/southend,ED Children & Public Health,Children And Education Services,3396,McDonalds,01/06/2023,12061160,3.18,Lunch for KS. Open as CIN.,Fast Food Restaurants (5814)
Southend-on-Sea Borough Council,http://opendatacommunities.org/id/unitary-authority/southend,ED Children & Public Health,Children And Education Services,3396,McDonalds,01/06/2023,12061160,2.53,food for yp as part of postive activity,Fast Food Restaurants (5814)
Southend-on-Sea Borough Council,http://opendatacommunities.org/id/unitary-authority/southend,ED Children & Public Health,Children And Education Services,3396,McDonalds,01/06/2023,12061160,4.36,food for yp as part of postive activity,Fast Food Restaurants (5814)
Southend-on-Sea Borough Council,http://opendatacommunities.org/id/unitary-authority/southend,"ED Strategy, Change & Governance",Central Services to the Public,7145,Amznmktplace,01/06/2023,12061160,3.87,Stationery - Mayor's Office,Misc Speciality Retail (5999)
Southend-on-Sea Borough Council,http://opendatacommunities.org/id/unitary-authority/southend,ED Children & Public Health,Children And Education Services,3492,Greaterangliacom,01/06/2023,12061160,23,Travel for parent to attend family time,Passenger Railways (4112)
Southend-on-Sea Borough Council,http://opendatacommunities.org/id/unitary-authority/southend,ED Adults & Communities,Cultural And Related Services,4015,The Range,01/06/2023,12061160,11.99,Boxes for showcase cleaning kits at museum sites,Misc Home Furnishing (5719)
Southend-on-Sea Borough Council,http://opendatacommunities.org/id/unitary-authority/southend,ED Neighbourhoods & Environment,Central Services to the Public,7175,Post Office Counter,01/06/2023,12061160,202.5,12 month tax for vehicle REDACTED PERSONAL DATA- paid in post office as MOT exempt vehicle cannot be paid online.,Postage Stamps (9402)
Southend-on-Sea Borough Council,http://opendatacommunities.org/id/unitary-authority/southend,ED Neighbourhoods & Environment,Central Services to the Public,7175,Dvla Vehicle Tax,01/06/2023,12061160,320,12 month tax for REDACTED PERSONAL DATA,Tax Payments (9311)
Southend-on-Sea Borough Council,http://opendatacommunities.org/id/unitary-authority/southend,ED Children & Public Health,Children And Education Services,3265,Google Ads2830285278,01/06/2023,12061160,153.83,Targeted PPC advertising to help drive prospective foster carer enquiries,Advertising Services (7311)
Southend-on-Sea Borough Council,http://opendatacommunities.org/id/unitary-authority/southend,ED Children & Public Health,Children And Education Services,3396,Southend Swimming & Di,01/06/2023,12061160,57.76,GYM MEMBERSHIP - RS,Member Clubs/Sport/Rec/Golf (7997)
Southend-on-Sea Borough Council,http://opendatacommunities.org/id/unitary-authority/southend,ED Adults & Communities,Planning Services,5615,Adobe Systems Software,01/06/2023,12061160,43.32,BEST growth hub - Adobe monthly prescription,Computer Software Stores (5734)
Southend-on-Sea Borough Council,http://opendatacommunities.org/id/unitary-authority/southend,ED Children & Public Health,Children And Education Services,3030,Home Bargains Southend,01/06/2023,12061160,3.49,Resources for Family Centre sessions,Hardware Stores (5251)
Southend-on-Sea Borough Council,http://opendatacommunities.org/id/unitary-authority/southend,ED Adults & Communities,Cultural And Related Services,4011,Www.Southend.Gov.Uk,01/06/2023,12061160,30,Events license fee,Computer Software Stores (5734)
Southend-on-Sea Borough Council,http://opendatacommunities.org/id/unitary-authority/southend,ED Growth & Housing,Highways And Transport Services,5021,Marine Management,01/06/2023,12061160,50,Catering for 10 staff at event at Belfairs Catchment to Coast - please code C11147,Govt Serv - Default (9399)
Southend-on-Sea Borough Council,http://opendatacommunities.org/id/unitary-authority/southend,ED Children & Public Health,Children And Education Services,3396,Subway 42108 Southend On,01/06/2023,12061160,9.08,JG Young person open to AIPT Early HelpLunch purchased,Fast Food Restaurants (5814)
Southend-on-Sea Borough Council,http://opendatacommunities.org/id/unitary-authority/southend,ED Children & Public Health,Children And Education Services,3396,Super Chef,01/06/2023,12061160,18.4,Breakfast from Shoebury Cafe purchased for young person open to Social Care and AIPT - SH,Fast Food Restaurants (5814)
Southend-on-Sea Borough Council,http://opendatacommunities.org/id/unitary-authority/southend,ED Adults & Communities,Cultural And Related Services,4055,Gwr Food On Train,01/06/2023,12061160,4.1,Refreshments on train journey for Cornwall visit,Passenger Railways (4112)
Southend-on-Sea Borough Council,http://opendatacommunities.org/id/unitary-authority/southend,ED Adults & Communities,Cultural And Related Services,4055,The Beachfield Hotel,01/06/2023,12061160,26.29,"Breakfast for REDACTED PERSONAL DATA and REDACTED PERSONAL DATA, Cornwall visit",Lodging/Hotels/Motels/Resorts (7011)
Southend-on-Sea Borough Council,http://opendatacommunities.org/id/unitary-authority/southend,ED Adults & Communities,Cultural And Related Services,4055,Sumup *n Jenkyn,01/06/2023,12061160,6.12,Taxi to the station in penzance - work trip.,Taxicabs/Limousines (4121)
Southend-on-Sea Borough Council,http://opendatacommunities.org/id/unitary-authority/southend,ED Adults & Communities,Cultural And Related Services,4055,Amznmktplace,01/06/2023,12061160,24.4,Display shelf for FOH,Misc Speciality Retail (5999)
Southend-on-Sea Borough Council,http://opendatacommunities.org/id/unitary-authority/southend,ED Children & Public Health,Children And Education Services,3471,Lidl Gb Southend,01/06/2023,12061160,5.98,food for syc cafe,Grocery Stores/Supermarkets (5411)
Southend-on-Sea Borough Council,http://opendatacommunities.org/id/unitary-authority/southend,ED Adults & Communities,Adult Social Care,1209,Frisco UK Sales Ltd,01/06/2023,12061160,1.92,Transaction 2 of 2 Invoice 0000754483 Handrail Brackets,Welding (7692)
Southend-on-Sea Borough Council,http://opendatacommunities.org/id/unitary-authority/southend,ED Adults & Communities,Adult Social Care,1209,Frisco UK Sales Ltd,01/06/2023,12061160,190.08,Transaction 1 of 2 Invoice 0000754483 Handrail Brackets,Welding (7692)
Southend-on-Sea Borough Council,http://opendatacommunities.org/id/unitary-authority/southend,ED Adults & Communities,Central Services to the Public,7540,Https Www Redstoneuk Com,01/06/2023,12061160,394.92,This purchase is to supply tyres & tubes to the parks mower repair workshop,Automotive Tire Stores (5532)
Southend-on-Sea Borough Council,http://opendatacommunities.org/id/unitary-authority/southend,ED Children & Public Health,Children And Education Services,3290,Kfc,01/06/2023,12061160,9.27,Former Relevant visit with Young person. Young persons refreshments.,Fast Food Restaurants (5814)
Southend-on-Sea Borough Council,http://opendatacommunities.org/id/unitary-authority/southend,ED Adults & Communities,Cultural And Related Services,4030,Defib Outlet,01/06/2023,12061160,408,Bleed pack first aid kits purchased for museum buildings,Misc Gen Merchandise - Def (5399)
Southend-on-Sea Borough Council,http://opendatacommunities.org/id/unitary-authority/southend,ED Growth & Housing,Planning Services,5641,Formara Ltd,01/06/2023,12061160,90.8,Leaflets for Multiply June 23,Misc Publishing & Printing (2741)
Southend-on-Sea Borough Council,http://opendatacommunities.org/id/unitary-authority/southend,ED Growth & Housing,Planning Services,5641,Formara Ltd,01/06/2023,12061160,259.2,Halo Banners and Leaflets June 23,Misc Publishing & Printing (2741)
Southend-on-Sea Borough Council,http://opendatacommunities.org/id/unitary-authority/southend,ED Neighbourhoods & Environment,Environmental And Regulatory Services,4525,P Southend Central To,01/06/2023,12061160,28.9,train fare re home office mtg on county lines / select committee attendance,Passenger Railways (4112)
Southend-on-Sea Borough Council,http://opendatacommunities.org/id/unitary-authority/southend,ED Children & Public Health,Children And Education Services,3290,Trainline,01/06/2023,12061160,108.26,Staff return train ticket to Bridgewater for Statutory Visit ( FM),Passenger Railways (4112)
Southend-on-Sea Borough Council,http://opendatacommunities.org/id/unitary-authority/southend,ED Children & Public Health,Children And Education Services,3290,Bkg*hotel At Booking.C,01/06/2023,12061160,136.8,Staff hotel booking for Statutory Visit in Bridgewater ( FM),Travel Agencies (4722)
Southend-on-Sea Borough Council,http://opendatacommunities.org/id/unitary-authority/southend,ED Children & Public Health,Children And Education Services,3396,McDonalds,01/06/2023,12061160,10.55,REFRESHMENTS FOR YOUNG PERSON - RS,Fast Food Restaurants (5814)
Southend-on-Sea Borough Council,http://opendatacommunities.org/id/unitary-authority/southend,ED Children & Public Health,Children And Education Services,3396,McDonalds,01/06/2023,12061160,2.12,REFRESHMENTS FOR YOUNG PERSON - RS,Fast Food Restaurants (5814)
Southend-on-Sea Borough Council,http://opendatacommunities.org/id/unitary-authority/southend,ED Children & Public Health,Children And Education Services,3396,McDonalds,01/06/2023,12061160,2.53,Lunch for IH- child on CIN plan.,Fast Food Restaurants (5814)
Southend-on-Sea Borough Council,http://opendatacommunities.org/id/unitary-authority/southend,ED Children & Public Health,Children And Education Services,3396,McDonalds,01/06/2023,12061160,6.65,Lunch for IH- child on CIN plan.,Fast Food Restaurants (5814)
Southend-on-Sea Borough Council,http://opendatacommunities.org/id/unitary-authority/southend,ED Children & Public Health,Children And Education Services,3396,McDonalds,01/06/2023,12061160,6.01,ED Young person open to Social Care AIPTLunch Purchased,Fast Food Restaurants (5814)
Southend-on-Sea Borough Council,http://opendatacommunities.org/id/unitary-authority/southend,ED Adults & Communities,Cultural And Related Services,4015,Power Hygne & Saf,01/06/2023,12061160,81.32,First aid top up,Specialty Cleaning/Polishing (2842)
Southend-on-Sea Borough Council,http://opendatacommunities.org/id/unitary-authority/southend,ED Children & Public Health,Children And Education Services,3590,Lpc Direct Ltd,02/06/2023,12061160,67.18,Stationary order for teams on 7th floor,Stationery Stores (5943)
Southend-on-Sea Borough Council,http://opendatacommunities.org/id/unitary-authority/southend,ED Children & Public Health,Children And Education Services,3436,Sainsburys S/Mkts,02/06/2023,12061160,9.75,Lunch with YP. AS.,Grocery Stores/Supermarkets (5411)
Southend-on-Sea Borough Council,http://opendatacommunities.org/id/unitary-authority/southend,ED Children & Public Health,Children And Education Services,3396,McDonalds,02/06/2023,12061160,1.49,Lunch for AA- open as cin.,Fast Food Restaurants (5814)
Southend-on-Sea Borough Council,http://opendatacommunities.org/id/unitary-authority/southend,ED Children & Public Health,Children And Education Services,3396,McDonalds,02/06/2023,12061160,6.08,Lunch for AA- open as cin.,Fast Food Restaurants (5814)
Southend-on-Sea Borough Council,http://opendatacommunities.org/id/unitary-authority/southend,ED Children & Public Health,Children And Education Services,3396,Cookies And Cones,02/06/2023,12061160,19.9,Half term activity for MB and KB- CP plan.,Bakeries (5462)
Southend-on-Sea Borough Council,http://opendatacommunities.org/id/unitary-authority/southend,ED Adults & Communities,Cultural And Related Services,4011,Amznmktplace,02/06/2023,12061160,3.95,DVD for Big Sceen Summer Screenings,Misc Speciality Retail (5999)
Southend-on-Sea Borough Council,http://opendatacommunities.org/id/unitary-authority/southend,ED Adults & Communities,Cultural And Related Services,4011,Amznmktplace,02/06/2023,12061160,4.99,DVD for Big Screen Summer Screenings,Misc Speciality Retail (5999)
Southend-on-Sea Borough Council,http://opendatacommunities.org/id/unitary-authority/southend,ED Adults & Communities,Cultural And Related Services,4011,Amznmktplace,02/06/2023,12061160,5.98,DVD for Big Screen Summer Screenings,Misc Speciality Retail (5999)
Southend-on-Sea Borough Council,http://opendatacommunities.org/id/unitary-authority/southend,ED Children & Public Health,Children And Education Services,3030,Amznmktplace,02/06/2023,12061160,11,signing in book sheets for centre place,Misc Speciality Retail (5999)
Southend-on-Sea Borough Council,http://opendatacommunities.org/id/unitary-authority/southend,ED Children & Public Health,Children And Education Services,3030,Amznmktplace,02/06/2023,12061160,24.98,bulk milk for blenheim family centre,Misc Speciality Retail (5999)
Southend-on-Sea Borough Council,http://opendatacommunities.org/id/unitary-authority/southend,ED Adults & Communities,Cultural And Related Services,4055,B&q Ltd,02/06/2023,12061160,18.66,"Varnished Cold-pressed steel Round Tube, (L)1m (Dia)10mm (T)1mm",Lumber/Build. Supply Stores (5211)
Southend-on-Sea Borough Council,http://opendatacommunities.org/id/unitary-authority/southend,ED Adults & Communities,Cultural And Related Services,4055,Toolstation Uk,02/06/2023,12061160,29.99,Single Thread Countersunk Pozi Screw Pack - 'Unstable Condition',Hardware Stores (5251)
Southend-on-Sea Borough Council,http://opendatacommunities.org/id/unitary-authority/southend,ED Adults & Communities,Cultural And Related Services,4055,Wickes Building,02/06/2023,12061160,65.8,Wickes 20mm Multi-Purpose Round Tube - Steel 1m x 7 - 'Unstable Condition',Lumber/Build. Supply Stores (5211)
Southend-on-Sea Borough Council,http://opendatacommunities.org/id/unitary-authority/southend,ED Adults & Communities,Cultural And Related Services,4055,Www.Screwfix.Com,02/06/2023,12061160,71.76,Rawlbolts M12x140mm 5Pk - 'Unstable Condition' Exhibition,Lumber/Build. Supply Stores (5211)
Southend-on-Sea Borough Council,http://opendatacommunities.org/id/unitary-authority/southend,ED Growth & Housing,Highways And Transport Services,5000,Bkg*booking.Com Hotel,02/06/2023,12061160,600,"REDACTED PERSONAL DATA overnight accommodation for attending Flood and Coast Conference, 5 - 8th June 2023. *",Travel Agencies (4722)
Southend-on-Sea Borough Council,http://opendatacommunities.org/id/unitary-authority/southend,ED Children & Public Health,Children And Education Services,3492,Trainline,02/06/2023,12061160,36.15,train fare for a parent for family time with child,Passenger Railways (4112)
Southend-on-Sea Borough Council,http://opendatacommunities.org/id/unitary-authority/southend,ED Adults & Communities,Cultural And Related Services,4015,Mailchimp,02/06/2023,12061160,21.57,Mailchimp for museum newsletter,Digital Goods - Large Digital Goods Merchant (5818)
Southend-on-Sea Borough Council,http://opendatacommunities.org/id/unitary-authority/southend,ED Children & Public Health,Children And Education Services,3471,Servicesport,02/06/2023,12061160,252,Gym equiment at St Luke's Hub in Cluny Square servcies to maintain the safetye for th the users of t *,Sporting Goods Stores (5941)
Southend-on-Sea Borough Council,http://opendatacommunities.org/id/unitary-authority/southend,ED Adults & Communities,Cultural And Related Services,4120,Tesco Pfs 3236,02/06/2023,12061160,6.15,"This was a Tesco receipt for milk and biscuits for the Pier of the year event, unfortunately I have *",Service Stations (5541)
Southend-on-Sea Borough Council,http://opendatacommunities.org/id/unitary-authority/southend,ED Adults & Communities,Cultural And Related Services,4055,Sainsburys S/mkts,03/06/2023,12061160,4.7,Milk for the gallery,Grocery Stores/Supermarkets (5411)
Southend-on-Sea Borough Council,http://opendatacommunities.org/id/unitary-authority/southend,"ED Strategy, Change & Governance",Environmental And Regulatory Services,4505,Amznmktplace,03/06/2023,12061160,19.99,replacement pond plants,Misc Speciality Retail (5999)
Southend-on-Sea Borough Council,http://opendatacommunities.org/id/unitary-authority/southend,"ED Strategy, Change & Governance",Environmental And Regulatory Services,4505,Amznmktplace,03/06/2023,12061160,73.5,pond plant replacements,Misc Speciality Retail (5999)
Southend-on-Sea Borough Council,http://opendatacommunities.org/id/unitary-authority/southend,ED Adults & Communities,Cultural And Related Services,4055,Amznmktplace,03/06/2023,12061160,6.98,Sourcingmap 1mm Wire Rope Aluminum Sleeves Clip Fittings Cable Crimps - 'Unstable Condition',Misc Speciality Retail (5999)
Southend-on-Sea Borough Council,http://opendatacommunities.org/id/unitary-authority/southend,ED Adults & Communities,Cultural And Related Services,4055,Amznmktplace,03/06/2023,12061160,10.39,Trimming Shop Silver 15mm Brass Eyelets Grommets - 'Unstable Condition',Misc Speciality Retail (5999)
Southend-on-Sea Borough Council,http://opendatacommunities.org/id/unitary-authority/southend,ED Children & Public Health,Children And Education Services,3471,Timpson Ltd,03/06/2023,12061160,9,Additional key cut for St Luke's Hub for staff covering for REDACTED PERSONAL DATA while she is on annual leave.,Misc Speciality Retail (5999)
Southend-on-Sea Borough Council,http://opendatacommunities.org/id/unitary-authority/southend,ED Children & Public Health,Children And Education Services,3492,Greater Anglia Rail,04/06/2023,12061160,23,Travel for parent to attend family time,Passenger Railways (4112)
Southend-on-Sea Borough Council,http://opendatacommunities.org/id/unitary-authority/southend,"ED Strategy, Change & Governance",Central Services to the Public,7140,Amznmktplace,04/06/2023,12061160,72.88,purchase is for stock for FMHi the receipt come as in two half for some reason hopefully you can v *,Misc Speciality Retail (5999)
Southend-on-Sea Borough Council,http://opendatacommunities.org/id/unitary-authority/southend,ED Children & Public Health,Children And Education Services,3492,Greaterangliacom,04/06/2023,12061160,23,Travel for parent to attend family time,Passenger Railways (4112)
Southend-on-Sea Borough Council,http://opendatacommunities.org/id/unitary-authority/southend,ED Children & Public Health,Children And Education Services,3492,Greaterangliacom,04/06/2023,12061160,23,Travel for parent to attend family time,Passenger Railways (4112)
Southend-on-Sea Borough Council,http://opendatacommunities.org/id/unitary-authority/southend,ED Children & Public Health,Children And Education Services,3790,Www.Healthcareconferen,05/06/2023,12061160,318.6,"Training booked for service manager, as agreed by director",Business Services - Default (7399)
Southend-on-Sea Borough Council,http://opendatacommunities.org/id/unitary-authority/southend,ED Adults & Communities,Cultural And Related Services,4280,Amznmktplace,05/06/2023,12061160,22.49,Toilet rolls for use by staff and customers at Westcliff Library,Misc Speciality Retail (5999)
Southend-on-Sea Borough Council,http://opendatacommunities.org/id/unitary-authority/southend,ED Adults & Communities,Cultural And Related Services,4290,Amznmktplace,05/06/2023,12061160,22.49,Toilet rolls for use by staff and customers at Leigh Library,Misc Speciality Retail (5999)
Southend-on-Sea Borough Council,http://opendatacommunities.org/id/unitary-authority/southend,ED Adults & Communities,Cultural And Related Services,7515,Asda Superstore,05/06/2023,12061160,13.25,Flowers for floristry order,Grocery Stores/Supermarkets (5411)
Southend-on-Sea Borough Council,http://opendatacommunities.org/id/unitary-authority/southend,ED Children & Public Health,Children And Education Services,3436,McDonalds,05/06/2023,12061160,5.49,lunch out when 100 miles from office on prison visit,Eating Places/Restaurants (5812)
Southend-on-Sea Borough Council,http://opendatacommunities.org/id/unitary-authority/southend,ED Children & Public Health,Children And Education Services,3030,Co-Op Group 070686,05/06/2023,12061160,3.35,Resources for Family Centre sessions,Grocery Stores/Supermarkets (5411)
Southend-on-Sea Borough Council,http://opendatacommunities.org/id/unitary-authority/southend,ED Children & Public Health,Children And Education Services,3030,Asda Superstore,05/06/2023,12061160,12.6,Resources for Family Centre sessions,Grocery Stores/Supermarkets (5411)
Southend-on-Sea Borough Council,http://opendatacommunities.org/id/unitary-authority/southend,ED Children & Public Health,Children And Education Services,3030,Asda Superstore,05/06/2023,12061160,6.14,Resources for Family Centre sessions,Grocery Stores/Supermarkets (5411)
Southend-on-Sea Borough Council,http://opendatacommunities.org/id/unitary-authority/southend,ED Children & Public Health,Children And Education Services,3396,Toddington S/W Greggs,05/06/2023,12061160,6.95,Out of area (Milton Keynes) visit to see MK at Oak Hill. Looked after child.,Eating Places/Restaurants (5812)
Southend-on-Sea Borough Council,http://opendatacommunities.org/id/unitary-authority/southend,ED Children & Public Health,Children And Education Services,3436,McDonalds,05/06/2023,12061160,3.98,Coffee Out of Area,Fast Food Restaurants (5814)
Southend-on-Sea Borough Council,http://opendatacommunities.org/id/unitary-authority/southend,ED Children & Public Health,Children And Education Services,3436,Toddington S/W Greggs,05/06/2023,12061160,7.5,Lunch OOA on prison visit,Eating Places/Restaurants (5812)
Southend-on-Sea Borough Council,http://opendatacommunities.org/id/unitary-authority/southend,ED Adults & Communities,Cultural And Related Services,4011,Amznmktplace,05/06/2023,12061160,4.59,DVD for Big Screen Summer Screenings,Misc Speciality Retail (5999)
Southend-on-Sea Borough Council,http://opendatacommunities.org/id/unitary-authority/southend,ED Growth & Housing,Highways And Transport Services,5021,W M Morrison,05/06/2023,12061160,25.2,Please see emails - card used in error for fuel - payment has been made from REDACTED PERSONAL DATA to SCC *,Service Stations (5541)
Southend-on-Sea Borough Council,http://opendatacommunities.org/id/unitary-authority/southend,ED Growth & Housing,Highways And Transport Services,5021,The Malthouse,05/06/2023,12061160,38,Dinner for three members of staff at conference.,Eating Places/Restaurants (5812)
Southend-on-Sea Borough Council,http://opendatacommunities.org/id/unitary-authority/southend,"ED Strategy, Change & Governance",Central Services to the Public,7140,Amznmktplace,05/06/2023,12061160,14.4,Hazard tape for stock,Misc Speciality Retail (5999)
Southend-on-Sea Borough Council,http://opendatacommunities.org/id/unitary-authority/southend,ED Adults & Communities,Cultural And Related Services,4256,Stands Out Ltd,05/06/2023,12061160,368.43,Merchandise to be sold at the Forum and other libraries,Misc Speciality Retail (5999)
Southend-on-Sea Borough Council,http://opendatacommunities.org/id/unitary-authority/southend,ED Adults & Communities,Cultural And Related Services,4015,B & Q 1372,05/06/2023,12061160,26.5,Wood filler and Hardener for repairs to Priory VC Door.,Home Supply Warehouse Stores (5200)
Southend-on-Sea Borough Council,http://opendatacommunities.org/id/unitary-authority/southend,ED Adults & Communities,Cultural And Related Services,4055,P Shoeburyness Sst,05/06/2023,12061160,11.1,transport to basildon for elevator arts exhibition opening,Passenger Railways (4112)
Southend-on-Sea Borough Council,http://opendatacommunities.org/id/unitary-authority/southend,ED Children & Public Health,Children And Education Services,3030,Amznmktplace,05/06/2023,12061160,21.74,bulk paper for blenheim family centre,Misc Speciality Retail (5999)
Southend-on-Sea Borough Council,http://opendatacommunities.org/id/unitary-authority/southend,ED Adults & Communities,Cultural And Related Services,4055,Furniture@work Ltd,05/06/2023,12061160,316.8,"A table carrier for the shared space for security to use to set up workshops, events ettc. Cost shar *",Furniture/Equip Stores (5712)
Southend-on-Sea Borough Council,http://opendatacommunities.org/id/unitary-authority/southend,"ED Strategy, Change & Governance",Environmental And Regulatory Services,4505,Amznmktplace,05/06/2023,12061160,150,replacement pond pump,Misc Speciality Retail (5999)
Southend-on-Sea Borough Council,http://opendatacommunities.org/id/unitary-authority/southend,ED Finance & Resources,Housing Services,6130,Wilko Retail Limited,05/06/2023,12061160,3.75,Ball point pens,Misc Gen Merchandise - Def (5399)
Southend-on-Sea Borough Council,http://opendatacommunities.org/id/unitary-authority/southend,ED Adults & Communities,Adult Social Care,1209,Amznmktplace,05/06/2023,12061160,32.53,Apache Unisex-Adult AP306 Safety Shoes Black 9 UK Wide,Misc Speciality Retail (5999)
Southend-on-Sea Borough Council,http://opendatacommunities.org/id/unitary-authority/southend,ED Adults & Communities,Adult Social Care,1209,Amznmktplace,05/06/2023,12061160,99.98,ERGOMAKER Height Adjustable Standing Desk Converter - 81cm (32 Inch)Wide Platform Tabletop Workstat *,Misc Speciality Retail (5999)
Southend-on-Sea Borough Council,http://opendatacommunities.org/id/unitary-authority/southend,ED Finance & Resources,Central Services to the Public,2070,Greater Anglia,05/06/2023,12061160,47.9,"REDACTED PERSONAL DATA meeting, IOD and AOA dinner",Passenger Railways (4112)
Southend-on-Sea Borough Council,http://opendatacommunities.org/id/unitary-authority/southend,ED Finance & Resources,Central Services to the Public,1035,"Posit Software, Pbc",05/06/2023,12061160,247.44,SmartSouthend Shiny apps for 06/23,Computer Program/Sys Design (7372)
Southend-on-Sea Borough Council,http://opendatacommunities.org/id/unitary-authority/southend,ED Adults & Communities,Cultural And Related Services,4120,Boconline.Co.Uk,05/06/2023,12061160,15,Late payment fee for unpaid BOC account due to the absence of staff managing the account which had n *,Household Appliance Stores (5722)
Southend-on-Sea Borough Council,http://opendatacommunities.org/id/unitary-authority/southend,ED Adults & Communities,Cultural And Related Services,4120,Boconline.Co.Uk,05/06/2023,12061160,15,Late payment fee for unpaid BOC account due to the absence of staff managing the account which had n *,Household Appliance Stores (5722)
Southend-on-Sea Borough Council,http://opendatacommunities.org/id/unitary-authority/southend,ED Adults & Communities,Cultural And Related Services,4120,Boconline.Co.Uk,05/06/2023,12061160,239.04,E Z gas bottles unpaid account invoices due to the absence of staff managing the account in 2022 and *,Household Appliance Stores (5722)
Southend-on-Sea Borough Council,http://opendatacommunities.org/id/unitary-authority/southend,ED Children & Public Health,Children And Education Services,3290,Trainline.Com,05/06/2023,12061160,34.11,Travel to Former Relevant Visit,Passenger Railways (4112)
Southend-on-Sea Borough Council,http://opendatacommunities.org/id/unitary-authority/southend,ED Children & Public Health,Children And Education Services,3396,McDonalds,05/06/2023,12061160,6.88,Initial visit with IB - Food.,Fast Food Restaurants (5814)
Southend-on-Sea Borough Council,http://opendatacommunities.org/id/unitary-authority/southend,ED Neighbourhoods & Environment,Environmental And Regulatory Services,4575,Amznmktplace,05/06/2023,12061160,14.95,WORKING FROM EQUIPMENT AUTHORISED BY MANAGER,Misc Speciality Retail (5999)
Southend-on-Sea Borough Council,http://opendatacommunities.org/id/unitary-authority/southend,ED Neighbourhoods & Environment,Environmental And Regulatory Services,4575,Amznmktplace,05/06/2023,12061160,111.54,WORKING FROM EQUOMENT APPROVED BY MANAGER,Misc Speciality Retail (5999)
Southend-on-Sea Borough Council,http://opendatacommunities.org/id/unitary-authority/southend,ED Growth & Housing,Planning Services,5641,Co-Op Group 310454,05/06/2023,12061160,8,Refreshments for Greening Southend 6/6/23,Grocery Stores/Supermarkets (5411)
Southend-on-Sea Borough Council,http://opendatacommunities.org/id/unitary-authority/southend,ED Growth & Housing,Planning Services,5641,Co-Op Group 310454,05/06/2023,12061160,3.88,Refreshments for Greening Southend 6/6/23,Grocery Stores/Supermarkets (5411)
Southend-on-Sea Borough Council,http://opendatacommunities.org/id/unitary-authority/southend,ED Adults & Communities,Adult Social Care,1351,Paj-Gps,05/06/2023,12061160,5.99,Subscription for GPS tracker for ongoing Court of Protection case,Electronics Sales (5732)
Southend-on-Sea Borough Council,http://opendatacommunities.org/id/unitary-authority/southend,ED Children & Public Health,Children And Education Services,3290,Hm Passport Office,05/06/2023,12061160,87.5,Fee paid for passport application for a Looked after young person by his SW ( ZK),Govt Serv - Default (9399)
Southend-on-Sea Borough Council,http://opendatacommunities.org/id/unitary-authority/southend,ED Children & Public Health,Children And Education Services,3471,Amznmktplace,05/06/2023,12061160,7.28,Pool cue tips for use at St Luke's Hub youth groups.,Misc Speciality Retail (5999)
Southend-on-Sea Borough Council,http://opendatacommunities.org/id/unitary-authority/southend,"ED Strategy, Change & Governance",Central Services to the Public,7140,Amznmktplace,06/06/2023,12061160,9.99,erasers for floor 2,Misc Speciality Retail (5999)
Southend-on-Sea Borough Council,http://opendatacommunities.org/id/unitary-authority/southend,"ED Strategy, Change & Governance",Central Services to the Public,7140,Amznmktplace,06/06/2023,12061160,69.96,artificial plants for floor 2,Misc Speciality Retail (5999)
Southend-on-Sea Borough Council,http://opendatacommunities.org/id/unitary-authority/southend,ED Adults & Communities,Cultural And Related Services,4015,B & Q 1372,22/05/2023,12061160,68.73,Materials for new art exhibit and modifications to front desk.,Home Supply Warehouse Stores (5200)
Southend-on-Sea Borough Council,http://opendatacommunities.org/id/unitary-authority/southend,"ED Strategy, Change & Governance",Central Services to the Public,2045,Posturite Ltd,06/06/2023,12061160,370.99,Roller mouse for REDACTED PERSONAL DATA,Misc Home Furnishing (5719)
Southend-on-Sea Borough Council,http://opendatacommunities.org/id/unitary-authority/southend,"ED Strategy, Change & Governance",Central Services to the Public,2045,Sp Speechshop,06/06/2023,12061160,405.6,Olympus dictation and recording device for REDACTED PERSONAL DATA,Computer Software Stores (5734)
Southend-on-Sea Borough Council,http://opendatacommunities.org/id/unitary-authority/southend,"ED Strategy, Change & Governance",Central Services to the Public,2045,Online Ergonomics Ltd,06/06/2023,12061160,1467.67,Various items for REDACTED PERSONAL DATA including adaptchair and head rest and programmable memory controller,Commercial Furniture (5021)
Southend-on-Sea Borough Council,http://opendatacommunities.org/id/unitary-authority/southend,ED Adults & Communities,Cultural And Related Services,4025,Hobbycraft Southend,06/06/2023,12061160,3,"Materials for interactive in EKCO exhibition, Central Museum",Artist/Craft Shops (5970)
Southend-on-Sea Borough Council,http://opendatacommunities.org/id/unitary-authority/southend,"ED Strategy, Change & Governance",Central Services to the Public,7140,Amznmktplace,06/06/2023,12061160,7.99,white board pens and erasers,Misc Speciality Retail (5999)
Southend-on-Sea Borough Council,http://opendatacommunities.org/id/unitary-authority/southend,"ED Strategy, Change & Governance",Central Services to the Public,7140,Amznmktplace,06/06/2023,12061160,15.49,artificial plants floor 2,Misc Speciality Retail (5999)
Southend-on-Sea Borough Council,http://opendatacommunities.org/id/unitary-authority/southend,ED Children & Public Health,Children And Education Services,3436,Sainsburys S/mkt,06/06/2023,12061160,5.95,biscuits for Referral order panel members,Grocery Stores/Supermarkets (5411)
Southend-on-Sea Borough Council,http://opendatacommunities.org/id/unitary-authority/southend,ED Children & Public Health,Children And Education Services,3396,McDonalds,06/06/2023,12061160,2.06,client contact and refreshments KG,Fast Food Restaurants (5814)
Southend-on-Sea Borough Council,http://opendatacommunities.org/id/unitary-authority/southend,ED Children & Public Health,Children And Education Services,3396,McDonalds,06/06/2023,12061160,0.99,client contact and refreshments KG,Fast Food Restaurants (5814)
Southend-on-Sea Borough Council,http://opendatacommunities.org/id/unitary-authority/southend,ED Children & Public Health,Children And Education Services,3396,McDonalds,06/06/2023,12061160,4.83,client contact and refreshments KG,Fast Food Restaurants (5814)
Southend-on-Sea Borough Council,http://opendatacommunities.org/id/unitary-authority/southend,ED Children & Public Health,Children And Education Services,3396,Tim Hortons Braintree,06/06/2023,12061160,8.94,Lunch out of area- RMDB.,Fast Food Restaurants (5814)
Southend-on-Sea Borough Council,http://opendatacommunities.org/id/unitary-authority/southend,ED Children & Public Health,Children And Education Services,3396,Tim Hortons Braintree,06/06/2023,12061160,8.94,Lunch for RMDB looked after child.,Fast Food Restaurants (5814)
Southend-on-Sea Borough Council,http://opendatacommunities.org/id/unitary-authority/southend,ED Children & Public Health,Children And Education Services,3030,Aldi Stores Ltd,06/06/2023,12061160,4.27,Snacks and resources for family cenres,Grocery Stores/Supermarkets (5411)
Southend-on-Sea Borough Council,http://opendatacommunities.org/id/unitary-authority/southend,ED Children & Public Health,Children And Education Services,3396,McDonalds,06/06/2023,12061160,2.99,Drink with HP as part of positive activity,Fast Food Restaurants (5814)
Southend-on-Sea Borough Council,http://opendatacommunities.org/id/unitary-authority/southend,ED Children & Public Health,Children And Education Services,3396,McDonalds,06/06/2023,12061160,1.49,Drink with HP as part of positive activity,Fast Food Restaurants (5814)
Southend-on-Sea Borough Council,http://opendatacommunities.org/id/unitary-authority/southend,ED Children & Public Health,Children And Education Services,3455,Amznmktplace,06/06/2023,12061160,2.6,Labels for adoption workshops,Misc Speciality Retail (5999)
Southend-on-Sea Borough Council,http://opendatacommunities.org/id/unitary-authority/southend,ED Children & Public Health,Children And Education Services,3455,Amznmktplace,06/06/2023,12061160,12.5,Marker pens for adoption workshops,Misc Speciality Retail (5999)
Southend-on-Sea Borough Council,http://opendatacommunities.org/id/unitary-authority/southend,ED Adults & Communities,Cultural And Related Services,4055,Www.Southend.Gov.Uk,06/06/2023,12061160,245,Southend-on-Sea City Council Highways Permit for Railway Bridge commission,Computer Software Stores (5734)
Southend-on-Sea Borough Council,http://opendatacommunities.org/id/unitary-authority/southend,ED Growth & Housing,Highways And Transport Services,5021,The Ironbridge,06/06/2023,12061160,28.3,Dinner for three members of staff at conference.,Fast Food Restaurants (5814)
Southend-on-Sea Borough Council,http://opendatacommunities.org/id/unitary-authority/southend,ED Children & Public Health,Children And Education Services,3692,Https://Islington.Civi,06/06/2023,12061160,12,Birth certification DC,Govt Serv - Default (9399)
Southend-on-Sea Borough Council,http://opendatacommunities.org/id/unitary-authority/southend,ED Children & Public Health,Children And Education Services,3692,Gen Register Office,06/06/2023,12061160,14,Birth certificate PH,Govt Serv - Default (9399)
Southend-on-Sea Borough Council,http://opendatacommunities.org/id/unitary-authority/southend,ED Children & Public Health,Children And Education Services,3692,Hm Passport Office,06/06/2023,12061160,53.5,Passport application LN,Govt Serv - Default (9399)
Southend-on-Sea Borough Council,http://opendatacommunities.org/id/unitary-authority/southend,ED Children & Public Health,Children And Education Services,3396,McDonalds,06/06/2023,12061160,4.96,"AIPT contact after activity, purchase of McDonalds for KM. Vat number: 597271302.",Fast Food Restaurants (5814)
Southend-on-Sea Borough Council,http://opendatacommunities.org/id/unitary-authority/southend,ED Children & Public Health,Children And Education Services,3396,McDonalds,06/06/2023,12061160,1.83,"AIPT contact after activity, purchase of McDonalds for KM. Vat number: 597271302.",Fast Food Restaurants (5814)
Southend-on-Sea Borough Council,http://opendatacommunities.org/id/unitary-authority/southend,ED Children & Public Health,Children And Education Services,3471,Booker Ltd - 38577234,06/06/2023,12061160,89.73,food supplies for syc cafe,Grocery Stores/Supermarkets (5411)
Southend-on-Sea Borough Council,http://opendatacommunities.org/id/unitary-authority/southend,ED Children & Public Health,Children And Education Services,3471,Booker Ltd - 38577234,06/06/2023,12061160,141.37,food supplies for syc cafe,Grocery Stores/Supermarkets (5411)
Southend-on-Sea Borough Council,http://opendatacommunities.org/id/unitary-authority/southend,ED Neighbourhoods & Environment,Highways And Transport Services,5181,P Benfleet To,06/06/2023,12061160,18.6,Benfleet to London Euston,Passenger Railways (4112)
Southend-on-Sea Borough Council,http://opendatacommunities.org/id/unitary-authority/southend,ED Neighbourhoods & Environment,Highways And Transport Services,5181,Briar Rose,06/06/2023,12061160,347,Hotel for Parking conference.,Eating Places/Restaurants (5812)
Southend-on-Sea Borough Council,http://opendatacommunities.org/id/unitary-authority/southend,"ED Strategy, Change & Governance",Central Services to the Public,2190,Amz*office Trolley,06/06/2023,12061160,-14.25,Credit Voucher Amz*office Trolley This is the credit for the mousemat that was not recieved,Misc Speciality Retail (5999)
Southend-on-Sea Borough Council,http://opendatacommunities.org/id/unitary-authority/southend,ED Finance & Resources,Central Services to the Public,2070,Greater Anglia T/O,06/06/2023,12061160,28.9,Travel to IOD Pall Mall,Passenger Railways (4112)
Southend-on-Sea Borough Council,http://opendatacommunities.org/id/unitary-authority/southend,ED Adults & Communities,Cultural And Related Services,4030,Www.Rossiicecream.Com,06/06/2023,12061160,130.6,Ice cream for sale at Priory VC,Grocery Stores/Supermarkets (5411)
Southend-on-Sea Borough Council,http://opendatacommunities.org/id/unitary-authority/southend,ED Neighbourhoods & Environment,Environmental And Regulatory Services,4575,Amznmktplace,06/06/2023,12061160,94.99,EQUIPMENT FOR HOME WORKING AUTHORISED BY MANAGER,Misc Speciality Retail (5999)
Southend-on-Sea Borough Council,http://opendatacommunities.org/id/unitary-authority/southend,ED Neighbourhoods & Environment,Environmental And Regulatory Services,4525,Security Industry Auth,06/06/2023,12061160,184,SIA security licence for community safety officer (mandatory ),Govt Serv - Default (9399)
Southend-on-Sea Borough Council,http://opendatacommunities.org/id/unitary-authority/southend,ED Growth & Housing,Planning Services,5641,Southend Parking,06/06/2023,12061160,1.2,Parking whilst attending ABSS Work Skills meeting June 23,"Parking Lots, Meters, Garages (7523)"
Southend-on-Sea Borough Council,http://opendatacommunities.org/id/unitary-authority/southend,ED Growth & Housing,Planning Services,5641,Southend Parking,06/06/2023,12061160,1.2,Parking whilst attending ABSS Work Skills meeting June 23,"Parking Lots, Meters, Garages (7523)"
Southend-on-Sea Borough Council,http://opendatacommunities.org/id/unitary-authority/southend,ED Children & Public Health,Children And Education Services,3290,Trainline,05/06/2023,12061160,-103,Credit Voucher Trainline Travel to Visit- re- arranged.,Passenger Railways (4112)
Southend-on-Sea Borough Council,http://opendatacommunities.org/id/unitary-authority/southend,ED Adults & Communities,Cultural And Related Services,4015,C.E.F. (Southend),06/06/2023,12061160,42.54,Replacement light tubes for the museum.,Lumber/Build. Supply Stores (5211)
Southend-on-Sea Borough Council,http://opendatacommunities.org/id/unitary-authority/southend,"ED Strategy, Change & Governance",Central Services to the Public,7145,Amznmktplace,07/06/2023,12061160,22.5,Silver Cleaning product - Porters Civic House,Misc Speciality Retail (5999)
Southend-on-Sea Borough Council,http://opendatacommunities.org/id/unitary-authority/southend,"ED Strategy, Change & Governance",Central Services to the Public,7145,Amznmktplace,07/06/2023,12061160,24.49,Cleaning product - porters Civic House,Misc Speciality Retail (5999)
Southend-on-Sea Borough Council,http://opendatacommunities.org/id/unitary-authority/southend,"ED Strategy, Change & Governance",Central Services to the Public,7145,Amznmktplace,07/06/2023,12061160,26.38,Cleaning product - Porters Civic House,Misc Speciality Retail (5999)
Southend-on-Sea Borough Council,http://opendatacommunities.org/id/unitary-authority/southend,ED Adults & Communities,Adult Social Care,1180,Greater Anglia Rail,07/06/2023,12061160,32.3,Train travel to Vauxhall London to attend university lectures,Passenger Railways (4112)
Southend-on-Sea Borough Council,http://opendatacommunities.org/id/unitary-authority/southend,ED Children & Public Health,Children And Education Services,3396,McDonalds 859,07/06/2023,12061160,2.13,REFRESHMENTS FOR CLIENT - SB,Fast Food Restaurants (5814)
Southend-on-Sea Borough Council,http://opendatacommunities.org/id/unitary-authority/southend,ED Children & Public Health,Children And Education Services,3396,McDonalds 859,07/06/2023,12061160,1.99,REFRESHMENTS FOR CLIENT - SB,Fast Food Restaurants (5814)
Southend-on-Sea Borough Council,http://opendatacommunities.org/id/unitary-authority/southend,ED Children & Public Health,Children And Education Services,3396,McDonalds,07/06/2023,12061160,1.56,REFRESHMENTS FOR CLIENT - RS,Fast Food Restaurants (5814)
Southend-on-Sea Borough Council,http://opendatacommunities.org/id/unitary-authority/southend,ED Children & Public Health,Children And Education Services,3396,McDonalds,07/06/2023,12061160,7.07,REFRESHMENTS FOR CLIENT - RS,Fast Food Restaurants (5814)
Southend-on-Sea Borough Council,http://opendatacommunities.org/id/unitary-authority/southend,ED Children & Public Health,Children And Education Services,3396,Starbucks Coffee,07/06/2023,12061160,7.2,Visit with TM- open for assessment.,Fast Food Restaurants (5814)
Southend-on-Sea Borough Council,http://opendatacommunities.org/id/unitary-authority/southend,ED Children & Public Health,Children And Education Services,3396,Starbucks Coffee,07/06/2023,12061160,5.4,Visit with TM- open for assessment.,Fast Food Restaurants (5814)
Southend-on-Sea Borough Council,http://opendatacommunities.org/id/unitary-authority/southend,ED Children & Public Health,Children And Education Services,3396,McDonalds,07/06/2023,12061160,6.94,breakfast for HC as part of drive/intervention,Fast Food Restaurants (5814)
Southend-on-Sea Borough Council,http://opendatacommunities.org/id/unitary-authority/southend,ED Children & Public Health,Children And Education Services,3396,Trainline,07/06/2023,12061160,26.09,train fayre paid for SW to get to his college interview in London.,Passenger Railways (4112)
Southend-on-Sea Borough Council,http://opendatacommunities.org/id/unitary-authority/southend,ED Growth & Housing,Highways And Transport Services,5021,Telford International Cen,07/06/2023,12061160,8,Lunch at conference.,Business Services - Default (7399)
Southend-on-Sea Borough Council,http://opendatacommunities.org/id/unitary-authority/southend,ED Growth & Housing,Highways And Transport Services,5021,Zizzi Telford,07/06/2023,12061160,81.46,Dinner for three members of staff at conference.,Eating Places/Restaurants (5812)
Southend-on-Sea Borough Council,http://opendatacommunities.org/id/unitary-authority/southend,ED Adults & Communities,Adult Social Care,1231,Greaterangliacom,07/06/2023,12061160,26.7,Social Worker attending CPA at Mental health ward,Passenger Railways (4112)
Southend-on-Sea Borough Council,http://opendatacommunities.org/id/unitary-authority/southend,ED Adults & Communities,Cultural And Related Services,4120,Tesco Stores 5178,07/06/2023,12061160,52.8,Postage stamps for annual Pier & Foreshore passes.,Grocery Stores/Supermarkets (5411)
Southend-on-Sea Borough Council,http://opendatacommunities.org/id/unitary-authority/southend,"ED Strategy, Change & Governance",Central Services to the Public,7140,Amznmktplace,07/06/2023,12061160,267.27,Window blinds for ict room,Misc Speciality Retail (5999)
Southend-on-Sea Borough Council,http://opendatacommunities.org/id/unitary-authority/southend,ED Adults & Communities,Cultural And Related Services,4015,Aviland Ltd,07/06/2023,12061160,96,Lime for repairs to external walls at Southchurch wall.,Lumber/Build. Supply Stores (5211)
Southend-on-Sea Borough Council,http://opendatacommunities.org/id/unitary-authority/southend,"ED Strategy, Change & Governance",Central Services to the Public,7140,Www.Screwfix.Com,07/06/2023,12061160,224.94,Work trousers for facilities team uniform,Lumber/Build. Supply Stores (5211)
Southend-on-Sea Borough Council,http://opendatacommunities.org/id/unitary-authority/southend,ED Children & Public Health,Children And Education Services,3290,Bkg*hotel At Booking.C,07/06/2023,12061160,83,Travel to visit with YP,Travel Agencies (4722)
Southend-on-Sea Borough Council,http://opendatacommunities.org/id/unitary-authority/southend,ED Children & Public Health,Children And Education Services,3290,Trainline,07/06/2023,12061160,103,Travel to visit for YP,Passenger Railways (4112)
Southend-on-Sea Borough Council,http://opendatacommunities.org/id/unitary-authority/southend,ED Children & Public Health,Children And Education Services,3396,McDonalds,07/06/2023,12061160,6.37,Refreshment for CP child during intervention - The receipt was in poor printing conditions and I am *,Fast Food Restaurants (5814)
Southend-on-Sea Borough Council,http://opendatacommunities.org/id/unitary-authority/southend,ED Neighbourhoods & Environment,Highways And Transport Services,5181,Bhm Station Tvm,07/06/2023,12061160,11.2,4 tickets from Birmingham New Street to NEC (off peak),Passenger Railways (4112)
Southend-on-Sea Borough Council,http://opendatacommunities.org/id/unitary-authority/southend,ED Neighbourhoods & Environment,Highways And Transport Services,5181,Bhm Station Tvm,07/06/2023,12061160,25.5,3 Train tickets from Birmingham New Street to NEC,Passenger Railways (4112)
Southend-on-Sea Borough Council,http://opendatacommunities.org/id/unitary-authority/southend,ED Adults & Communities,Central Services to the Public,2041,Park Inn Senpd F&b,07/06/2023,12061160,240,Room booking at the Park Inn hotel for Afghan guests English class,Park Inns International (3553)
Southend-on-Sea Borough Council,http://opendatacommunities.org/id/unitary-authority/southend,ED Finance & Resources,Central Services to the Public,2156,Find A Will,07/06/2023,12061160,6,Payment for probate certificates to identify CTAX liability where required.,Professional Services - Def (8999)
Southend-on-Sea Borough Council,http://opendatacommunities.org/id/unitary-authority/southend,ED Neighbourhoods & Environment,Environmental And Regulatory Services,4575,Amznmktplace,07/06/2023,12061160,86.44,WORKING FROM HOME EQUIPMENT APPROVED BY MANAGER,Misc Speciality Retail (5999)
Southend-on-Sea Borough Council,http://opendatacommunities.org/id/unitary-authority/southend,ED Children & Public Health,Children And Education Services,3030,Asda Superstore,07/06/2023,12061160,10.98,snack for family centres,Grocery Stores/Supermarkets (5411)
Southend-on-Sea Borough Council,http://opendatacommunities.org/id/unitary-authority/southend,"ED Strategy, Change & Governance",Central Services to the Public,7145,Amznmktplace,08/06/2023,12061160,22.88,Display Stand - Porters Civic House,Misc Speciality Retail (5999)
Southend-on-Sea Borough Council,http://opendatacommunities.org/id/unitary-authority/southend,ED Children & Public Health,Children And Education Services,3492,Www.Argos.Co.Uk,08/06/2023,12061160,66,Verity is SW for family & REDACTED PERSONAL DATA agreed to purchase soft bedding for children to stay overnight,Department Stores (5311)
Southend-on-Sea Borough Council,http://opendatacommunities.org/id/unitary-authority/southend,ED Children & Public Health,Children And Education Services,3480,Travelodge Gb0000,08/06/2023,12061160,77.5,Emergency accommodation for family in A&I. BUDGET CODE 3791 NOT AVAILABLE - WILL NEED TO DO JOURNA *,Travelodge (3615)
Southend-on-Sea Borough Council,http://opendatacommunities.org/id/unitary-authority/southend,ED Adults & Communities,Cultural And Related Services,7515,Asda Superstore,08/06/2023,12061160,17.35,Flowers for floristry order,Grocery Stores/Supermarkets (5411)
Southend-on-Sea Borough Council,http://opendatacommunities.org/id/unitary-authority/southend,ED Adults & Communities,Cultural And Related Services,4045,Aldi Stores Ltd,08/06/2023,12061160,75.65,Refreshments for private view of REDACTED PERSONAL DATA exhibition at Beecroft Art Gallery,Grocery Stores/Supermarkets (5411)
Southend-on-Sea Borough Council,http://opendatacommunities.org/id/unitary-authority/southend,ED Children & Public Health,Children And Education Services,3105,Amznmktplace,08/06/2023,12061160,17.83,Table top leaflet stand,Misc Speciality Retail (5999)
Southend-on-Sea Borough Council,http://opendatacommunities.org/id/unitary-authority/southend,ED Children & Public Health,Children And Education Services,3030,Lidl Gb Southend,08/06/2023,12061160,3.75,Resources for Family Centre sessions,Grocery Stores/Supermarkets (5411)
Southend-on-Sea Borough Council,http://opendatacommunities.org/id/unitary-authority/southend,ED Children & Public Health,Children And Education Services,3030,Asda Superstore,08/06/2023,12061160,8.7,Resources for Family Centre sessions,Grocery Stores/Supermarkets (5411)
Southend-on-Sea Borough Council,http://opendatacommunities.org/id/unitary-authority/southend,ED Children & Public Health,Children And Education Services,3030,Asda Superstore,08/06/2023,12061160,21.1,Snacks and resources for family centres,Grocery Stores/Supermarkets (5411)
Southend-on-Sea Borough Council,http://opendatacommunities.org/id/unitary-authority/southend,ED Growth & Housing,Planning Services,5641,Amznmktplace,08/06/2023,12061160,54.19,Zip wallets for subject posters distributed to all Hub schools,Misc Speciality Retail (5999)
Southend-on-Sea Borough Council,http://opendatacommunities.org/id/unitary-authority/southend,ED Growth & Housing,Planning Services,5641,Thurrock Rfc Trading Lim,08/06/2023,12061160,80,Venue hire and refreshments for Enterprise Adviser meeting - Thurrock,Bars/Taverns/Lounges/Discos (5813)
Southend-on-Sea Borough Council,http://opendatacommunities.org/id/unitary-authority/southend,ED Growth & Housing,Planning Services,5641,Www.Pinbadges.Co,08/06/2023,12061160,549.95,Pin badges for Enterprise Advisers and Industry Champions - to support employer engagement,Misc Gen Merchandise - Def (5399)
Southend-on-Sea Borough Council,http://opendatacommunities.org/id/unitary-authority/southend,ED Children & Public Health,Children And Education Services,3425,Craftys,08/06/2023,12061160,2,Paracord clips for reparation,Artist/Craft Shops (5970)
Southend-on-Sea Borough Council,http://opendatacommunities.org/id/unitary-authority/southend,ED Adults & Communities,Cultural And Related Services,4120,Poundland Ltd 1138,08/06/2023,12061160,7,Coffee for Pier office.,Discount Stores (5310)
Southend-on-Sea Borough Council,http://opendatacommunities.org/id/unitary-authority/southend,ED Children & Public Health,Children And Education Services,3692,Essex County Counci Ec,08/06/2023,12061160,11,Birth certificate ALG,Govt Serv - Default (9399)
Southend-on-Sea Borough Council,http://opendatacommunities.org/id/unitary-authority/southend,ED Children & Public Health,Children And Education Services,3030,Amznmktplace,08/06/2023,12061160,11.41,bulk glue cambridge road family centre for sessions,Misc Speciality Retail (5999)
Southend-on-Sea Borough Council,http://opendatacommunities.org/id/unitary-authority/southend,ED Children & Public Health,Children And Education Services,3030,Amznmktplace,08/06/2023,12061160,24.98,bulk milk Cambridge Road family centre,Misc Speciality Retail (5999)
Southend-on-Sea Borough Council,http://opendatacommunities.org/id/unitary-authority/southend,ED Adults & Communities,Cultural And Related Services,4055,Dulux Decorator Centre,08/06/2023,12061160,102.74,Paint - 'Unstable Condition' Exhibition,Paint (5198)
Southend-on-Sea Borough Council,http://opendatacommunities.org/id/unitary-authority/southend,ED Adults & Communities,Cultural And Related Services,4055,Dulux Decorator Centre,08/06/2023,12061160,295.92,Paint - 'Unstable Condition' Exhibition,Paint (5198)
Southend-on-Sea Borough Council,http://opendatacommunities.org/id/unitary-authority/southend,ED Adults & Communities,Cultural And Related Services,4055,Dulux Decorator Centre,08/06/2023,12061160,297.14,Paint - 'Unstable Condition' Exhibition,Paint (5198)
Southend-on-Sea Borough Council,http://opendatacommunities.org/id/unitary-authority/southend,ED Children & Public Health,Children And Education Services,3396,McDonalds,08/06/2023,12061160,11.42,AIPT contact with two young people after activity. McDonalds meals purchased for both. VAT Number: 5 *,Fast Food Restaurants (5814)
Southend-on-Sea Borough Council,http://opendatacommunities.org/id/unitary-authority/southend,ED Children & Public Health,Children And Education Services,3396,McDonalds,08/06/2023,12061160,3.66,AIPT contact with two young people after activity. McDonalds meals purchased for both. VAT Number: 5 *,Fast Food Restaurants (5814)
Southend-on-Sea Borough Council,http://opendatacommunities.org/id/unitary-authority/southend,"ED Strategy, Change & Governance",Central Services to the Public,7140,Brand Identity,08/06/2023,12061160,270.77,Uniform for the facilities Team,Misc Publishing & Printing (2741)
Southend-on-Sea Borough Council,http://opendatacommunities.org/id/unitary-authority/southend,ED Children & Public Health,Children And Education Services,3471,Lidl Gb,08/06/2023,12061160,1.69,food for syc cafe and youth work,Grocery Stores/Supermarkets (5411)
Southend-on-Sea Borough Council,http://opendatacommunities.org/id/unitary-authority/southend,ED Children & Public Health,Children And Education Services,3471,Lidl Gb,08/06/2023,12061160,65.73,food for syc cafe and youth work,Grocery Stores/Supermarkets (5411)
Southend-on-Sea Borough Council,http://opendatacommunities.org/id/unitary-authority/southend,ED Neighbourhoods & Environment,Environmental And Regulatory Services,4520,Telford International Cen,08/06/2023,12061160,9.5,REDACTED PERSONAL DATA meal while attending Flood and Coastal Conference on 8th June 2023.,Business Services - Default (7399)
Southend-on-Sea Borough Council,http://opendatacommunities.org/id/unitary-authority/southend,ED Neighbourhoods & Environment,Highways And Transport Services,5181,Lul Ticket Machine,08/06/2023,12061160,16.4,Euston to Benfleet for Parking Conference,Passenger Railways (4112)
Southend-on-Sea Borough Council,http://opendatacommunities.org/id/unitary-authority/southend,ED Adults & Communities,Adult Social Care,1209,Amznmktplace,08/06/2023,12061160,11.8,"Rapesco S11662Z3 Galvanised Staples 26/6 mm, Box of 5000 x 4",Misc Speciality Retail (5999)
Southend-on-Sea Borough Council,http://opendatacommunities.org/id/unitary-authority/southend,ED Adults & Communities,Adult Social Care,1209,Amznmktplace,08/06/2023,12061160,44,12x Triplicate Book Notebook- Just Stationery- Job lot x 2,Misc Speciality Retail (5999)
Southend-on-Sea Borough Council,http://opendatacommunities.org/id/unitary-authority/southend,ED Finance & Resources,Central Services to the Public,2070,Greater Anglia T/o,08/06/2023,12061160,43.1,Unable to provide receipt.,Passenger Railways (4112)
Southend-on-Sea Borough Council,http://opendatacommunities.org/id/unitary-authority/southend,ED Children & Public Health,Public Health,7677,Formara Ltd,08/06/2023,12061160,111.6,"Printing for the Children, Young People and Families Public Health Service",Misc Publishing & Printing (2741)
Southend-on-Sea Borough Council,http://opendatacommunities.org/id/unitary-authority/southend,ED Children & Public Health,Children And Education Services,3098,Formara Ltd,08/06/2023,12061160,157.2,Posters for My future My southend project,Misc Publishing & Printing (2741)
Southend-on-Sea Borough Council,http://opendatacommunities.org/id/unitary-authority/southend,ED Growth & Housing,Planning Services,5641,Amznmktplace,09/06/2023,12061160,15.98,paper clamps for training materials at Careers Leader Network meeting,Misc Speciality Retail (5999)
Southend-on-Sea Borough Council,http://opendatacommunities.org/id/unitary-authority/southend,ED Growth & Housing,Planning Services,5641,Amznmktplace,09/06/2023,12061160,72.25,Zip wallets for subject posters distributed to all Hub schools,Misc Speciality Retail (5999)
Southend-on-Sea Borough Council,http://opendatacommunities.org/id/unitary-authority/southend,ED Children & Public Health,Children And Education Services,3425,Amznmktplace,09/06/2023,12061160,27.75,Paracord for Reparation,Misc Speciality Retail (5999)
Southend-on-Sea Borough Council,http://opendatacommunities.org/id/unitary-authority/southend,ED Adults & Communities,Adult Social Care,1209,Amznmktplace,09/06/2023,12061160,26.09,Crimson Starfish Clear Tape 6 Rolls of 48mm x 66m Rolls x 2,Misc Speciality Retail (5999)
Southend-on-Sea Borough Council,http://opendatacommunities.org/id/unitary-authority/southend,ED Children & Public Health,Children And Education Services,3396,Caffe Nero Southend,08/06/2023,12061160,8.1,Cold drinks with ES- for college visit.,Eating Places/Restaurants (5812)
Southend-on-Sea Borough Council,http://opendatacommunities.org/id/unitary-authority/southend,ED Children & Public Health,Children And Education Services,3480,Travelodge Gb0000,09/06/2023,12061160,344.72,Emergency accommodation for family in A&I. BUDGET CODE 3791 NOT AVAILABLE - WILL NEED TO DO JOURNA *,Travelodge (3615)
Southend-on-Sea Borough Council,http://opendatacommunities.org/id/unitary-authority/southend,ED Adults & Communities,Cultural And Related Services,4280,Amznmktplace,09/06/2023,12061160,3.31,Adhesive coat hooks for use in the staff and public toilets at Westcliff Library,Misc Speciality Retail (5999)
Southend-on-Sea Borough Council,http://opendatacommunities.org/id/unitary-authority/southend,ED Children & Public Health,Children And Education Services,3396,Starbucks Coffee,09/06/2023,12061160,5.05,Cold drink for KS- open as CIN.,Fast Food Restaurants (5814)
Southend-on-Sea Borough Council,http://opendatacommunities.org/id/unitary-authority/southend,ED Children & Public Health,Children And Education Services,3396,Thorpe Park,09/06/2023,12061160,106,"Thorpe park tickets purchased for siblings, MG and SG.",Theatrical Producers (7922)
Southend-on-Sea Borough Council,http://opendatacommunities.org/id/unitary-authority/southend,ED Children & Public Health,Children And Education Services,3445,Formara Ltd,09/06/2023,12061160,81.6,This was for the purchase of appointment cards for the supporting families team to make and book app *,Misc Publishing & Printing (2741)
Southend-on-Sea Borough Council,http://opendatacommunities.org/id/unitary-authority/southend,ED Children & Public Health,Children And Education Services,3030,Amznmktplace,09/06/2023,12061160,2.98,pens for CRFC sessions,Misc Speciality Retail (5999)
Southend-on-Sea Borough Council,http://opendatacommunities.org/id/unitary-authority/southend,ED Children & Public Health,Children And Education Services,3030,Amznmktplace,09/06/2023,12061160,9.49,restock of pens for cambridge road family centre reception,Misc Speciality Retail (5999)
Southend-on-Sea Borough Council,http://opendatacommunities.org/id/unitary-authority/southend,ED Children & Public Health,Children And Education Services,3030,Amznmktplace,09/06/2023,12061160,11.87,lamination pouches for summercourt family centre,Misc Speciality Retail (5999)
Southend-on-Sea Borough Council,http://opendatacommunities.org/id/unitary-authority/southend,ED Adults & Communities,Cultural And Related Services,4055,Camden Food Co Barrier,09/06/2023,12061160,6.78,Lost receipt - for lunch on way up to Liverpool for Biennial opening. Email approval from procuremen *,Fast Food Restaurants (5814)
Southend-on-Sea Borough Council,http://opendatacommunities.org/id/unitary-authority/southend,ED Adults & Communities,Cultural And Related Services,4055,Tate Liverpool Eats,09/06/2023,12061160,11.5,Lunch in Liverpool when at opening for Biennial opening,Eating Places/Restaurants (5812)
Southend-on-Sea Borough Council,http://opendatacommunities.org/id/unitary-authority/southend,ED Adults & Communities,Cultural And Related Services,4055,Mowgli Street Food Bold S,09/06/2023,12061160,21.19,Dinner in Liverpool,Eating Places/Restaurants (5812)
Southend-on-Sea Borough Council,http://opendatacommunities.org/id/unitary-authority/southend,ED Children & Public Health,Children And Education Services,3396,Waterstones,09/06/2023,12061160,16.5,CSCS DVD purchased so that AIPT young person can revise for his Health and Safety for Operatives tes *,Book Stores (5942)
Southend-on-Sea Borough Council,http://opendatacommunities.org/id/unitary-authority/southend,ED Adults & Communities,Adult Social Care,1231,Chelmsford Council,09/06/2023,12061160,11.5,Parking whilst attending the coroners court,Govt Serv - Default (9399)
Southend-on-Sea Borough Council,http://opendatacommunities.org/id/unitary-authority/southend,ED Adults & Communities,Adult Social Care,1209,Amznmktplace,09/06/2023,12061160,18.98,"BIC Cristal Original Smudge Free Ballpoint Pens, Ideal for School, Black,Medium Point (1.0mm), Pack *",Misc Speciality Retail (5999)
Southend-on-Sea Borough Council,http://opendatacommunities.org/id/unitary-authority/southend,ED Adults & Communities,Adult Social Care,1209,Amznmktplace,09/06/2023,12061160,27.92,"Ex-Pro Full Motion Ergonomic Adjustable Desk Mount Copy Holder with LineGuide, Document Holder with *",Misc Speciality Retail (5999)
Southend-on-Sea Borough Council,http://opendatacommunities.org/id/unitary-authority/southend,ED Children & Public Health,Children And Education Services,3396,B&m 341 - Southend,09/06/2023,12061160,3.09,Snacks for AR for good school attendance,Misc Gen Merchandise - Def (5399)
Southend-on-Sea Borough Council,http://opendatacommunities.org/id/unitary-authority/southend,ED Children & Public Health,Children And Education Services,3396,McDonalds 859,09/06/2023,12061160,5.49,Positive Activity - Food for AR,Fast Food Restaurants (5814)
Southend-on-Sea Borough Council,http://opendatacommunities.org/id/unitary-authority/southend,ED Adults & Communities,Cultural And Related Services,4015,Amznmktplace,10/06/2023,12061160,20.98,Materials for craft workshops at museum sites,Misc Speciality Retail (5999)
Southend-on-Sea Borough Council,http://opendatacommunities.org/id/unitary-authority/southend,ED Adults & Communities,Cultural And Related Services,4055,Hobbycraft Southend,10/06/2023,12061160,29.7,Materials for childrens art club,Artist/Craft Shops (5970)
Southend-on-Sea Borough Council,http://opendatacommunities.org/id/unitary-authority/southend,ED Adults & Communities,Cultural And Related Services,4055,Marks&spencer Plc,10/06/2023,12061160,10.55,Dinner back from Liverpool,Grocery Stores/Supermarkets (5411)
Southend-on-Sea Borough Council,http://opendatacommunities.org/id/unitary-authority/southend,ED Adults & Communities,Cultural And Related Services,4055,Mailchimp,10/06/2023,12061160,92.23,Monthly charge for mailchimp,Digital Goods - Large Digital Goods Merchant (5818)
Southend-on-Sea Borough Council,http://opendatacommunities.org/id/unitary-authority/southend,ED Children & Public Health,Children And Education Services,3030,Sainsburys Superma,10/06/2023,12061160,19.15,snack for family centres,Grocery Stores/Supermarkets (5411)
Southend-on-Sea Borough Council,http://opendatacommunities.org/id/unitary-authority/southend,"ED Strategy, Change & Governance",Central Services to the Public,5350,123 Reg Ltd 008336297,11/06/2023,12061160,28.78,Website registration for 23/24,Computer Network/Info Svcs (4816)
Southend-on-Sea Borough Council,http://opendatacommunities.org/id/unitary-authority/southend,"ED Strategy, Change & Governance",Central Services to the Public,7140,Amznmktplace,11/06/2023,12061160,110.5,food bin bags for stock,Misc Speciality Retail (5999)
Southend-on-Sea Borough Council,http://opendatacommunities.org/id/unitary-authority/southend,ED Children & Public Health,Children And Education Services,3030,Amznmktplace,11/06/2023,12061160,13.72,restock pens for summercourt family centre,Misc Speciality Retail (5999)
Southend-on-Sea Borough Council,http://opendatacommunities.org/id/unitary-authority/southend,ED Children & Public Health,Children And Education Services,3492,Greaterangliacom,12/06/2023,12061160,23,Travel for parent to attend family time,Passenger Railways (4112)
Southend-on-Sea Borough Council,http://opendatacommunities.org/id/unitary-authority/southend,ED Children & Public Health,Children And Education Services,3492,Greaterangliacom,12/06/2023,12061160,23,Travel for parent to attend family time,Passenger Railways (4112)
Southend-on-Sea Borough Council,http://opendatacommunities.org/id/unitary-authority/southend,ED Children & Public Health,Children And Education Services,3492,Bkg*hotel At Booking.C,12/06/2023,12061160,237,Accomodation for family to attend family time,Travel Agencies (4722)
Southend-on-Sea Borough Council,http://opendatacommunities.org/id/unitary-authority/southend,ED Children & Public Health,Children And Education Services,3791,M Blue Ltd Hotel,12/06/2023,12061160,-150,Credit Voucher M Blue Ltd Hotel17030610I dont have a credit note to go with this transactionCPS3- *,Lodging/Hotels/Motels/Resorts (7011)
Southend-on-Sea Borough Council,http://opendatacommunities.org/id/unitary-authority/southend,ED Finance & Resources,Central Services to the Public,7120,Ppl Prs Ltd,12/06/2023,12061160,172.92,PRS license Tickfield centre,Member Organizations - Def (8699)
Southend-on-Sea Borough Council,http://opendatacommunities.org/id/unitary-authority/southend,"ED Strategy, Change & Governance",Central Services to the Public,7140,Ppl Prs Ltd,12/06/2023,12061160,498,PRS license civic centre,Member Organizations - Def (8699)
Southend-on-Sea Borough Council,http://opendatacommunities.org/id/unitary-authority/southend,ED Adults & Communities,Planning Services,5615,Facebk 44l6pq3jj2,12/06/2023,12061160,50,Social media advertising for SPF,Advertising Services (7311)
Southend-on-Sea Borough Council,http://opendatacommunities.org/id/unitary-authority/southend,ED Children & Public Health,Children And Education Services,3105,Rockstarskins.Co.Uk,12/06/2023,12061160,96.98,1 custom printed drum skin with logo to be used on drum kit at events to increase awareness of servi *,Bands/Orchestras/Entertain (7929)
Southend-on-Sea Borough Council,http://opendatacommunities.org/id/unitary-authority/southend,ED Children & Public Health,Children And Education Services,3105,Pmt Online,12/06/2023,12061160,384,5 piece drum kit for us by local groups and at music events,Music Stores/Pianos (5733)
Southend-on-Sea Borough Council,http://opendatacommunities.org/id/unitary-authority/southend,ED Children & Public Health,Children And Education Services,3030,Asda Superstore,12/06/2023,12061160,6.68,Resources for Family Centre sessions,Grocery Stores/Supermarkets (5411)
Southend-on-Sea Borough Council,http://opendatacommunities.org/id/unitary-authority/southend,ED Children & Public Health,Children And Education Services,3290,Trainline,12/06/2023,12061160,127.91,Former relevant visit to Gainsborough,Passenger Railways (4112)
Southend-on-Sea Borough Council,http://opendatacommunities.org/id/unitary-authority/southend,ED Adults & Communities,Cultural And Related Services,4055,Macchiatos,12/06/2023,12061160,11.9,Food for myself and my colleague during workshop delivery.,Fast Food Restaurants (5814)
Southend-on-Sea Borough Council,http://opendatacommunities.org/id/unitary-authority/southend,ED Adults & Communities,Cultural And Related Services,4055,Southend Timber,12/06/2023,12061160,171.16,Timber for the install of REDACTED PERSONAL DATA exhibition,Lumber/Build. Supply Stores (5211)
Southend-on-Sea Borough Council,http://opendatacommunities.org/id/unitary-authority/southend,ED Children & Public Health,Children And Education Services,3030,Amznmktplace,12/06/2023,12061160,7.32,cold packs for bumps of children at Friarsfamily centre first aid kit,Misc Speciality Retail (5999)
Southend-on-Sea Borough Council,http://opendatacommunities.org/id/unitary-authority/southend,ED Growth & Housing,Highways And Transport Services,5010,Sq *atco,12/06/2023,12061160,50,ATCO Membership (Voting) for the period April 2023 - March 2024 for REDACTED PERSONAL DATA,Barber/Beauty Shops (7230)
Southend-on-Sea Borough Council,http://opendatacommunities.org/id/unitary-authority/southend,ED Growth & Housing,Highways And Transport Services,5010,Sq *atco,12/06/2023,12061160,50,ATCO Membership (Voting) for the period April 2023 - March 2024 for REDACTED PERSONAL DATA,Barber/Beauty Shops (7230)
Southend-on-Sea Borough Council,http://opendatacommunities.org/id/unitary-authority/southend,ED Growth & Housing,Highways And Transport Services,5010,Sq *atco,12/06/2023,12061160,50,ATCO Membership (Voting) for the period April 2023 - March 2024 for REDACTED PERSONAL DATA,Barber/Beauty Shops (7230)
Southend-on-Sea Borough Council,http://opendatacommunities.org/id/unitary-authority/southend,"ED Strategy, Change & Governance",Central Services to the Public,2190,Studio 2000 Photog,12/06/2023,12061160,172.2,photos for our British Citizens,Camera & Photo Supply Store (5946)
Southend-on-Sea Borough Council,http://opendatacommunities.org/id/unitary-authority/southend,ED Adults & Communities,Central Services to the Public,7540,Anglia Battery,12/06/2023,12061160,337.93,This purchase is for machine parts & workshop sundries required for use in the parks mower repair wo *,Motor Vehicle Supply/New Parts (5013)
Southend-on-Sea Borough Council,http://opendatacommunities.org/id/unitary-authority/southend,ED Adults & Communities,Cultural And Related Services,4120,Post Office Counter,12/06/2023,12061160,3.49,Postage of parcel to customer,Postage Stamps (9402)
Southend-on-Sea Borough Council,http://opendatacommunities.org/id/unitary-authority/southend,ED Children & Public Health,Children And Education Services,3492,Argos Southend,12/06/2023,12061160,18.99,Mobile phone and Sim for a social worker,Discount Stores (5310)
Southend-on-Sea Borough Council,http://opendatacommunities.org/id/unitary-authority/southend,ED Growth & Housing,Planning Services,5641,Twenty One Southend,12/06/2023,12061160,43.75,Room Hire for Self Employment Course 4th July 2023,Real Estate Agents And Managers (6513)
Southend-on-Sea Borough Council,http://opendatacommunities.org/id/unitary-authority/southend,ED Children & Public Health,Children And Education Services,3471,Amznmktplace,12/06/2023,12061160,9.26,Clear matt paint for use at adult art group ay Shoeburyness Youth Centre with REDACTED PERSONAL DATA,Misc Speciality Retail (5999)
Southend-on-Sea Borough Council,http://opendatacommunities.org/id/unitary-authority/southend,ED Children & Public Health,Children And Education Services,3105,Amznmktplace,13/06/2023,12061160,12.17,60 keyring tags to label items,Misc Speciality Retail (5999)
Southend-on-Sea Borough Council,http://opendatacommunities.org/id/unitary-authority/southend,ED Neighbourhoods & Environment,Environmental And Regulatory Services,4715,123 Reg Ltd 008399147,13/06/2023,12061160,14.39,Domain Renewal (1 year)southendclimateaction.co.uk,Computer Network/Info Svcs (4816)
Southend-on-Sea Borough Council,http://opendatacommunities.org/id/unitary-authority/southend,ED Neighbourhoods & Environment,Environmental And Regulatory Services,4575,Trainline,07/06/2023,12061160,-26.5,Credit Voucher Trainline,Passenger Railways (4112)
Southend-on-Sea Borough Council,http://opendatacommunities.org/id/unitary-authority/southend,ED Children & Public Health,Children And Education Services,3492,Greater Anglia Rail,13/06/2023,12061160,38.8,Washing machine for family. Neglect main concern,Passenger Railways (4112)
Southend-on-Sea Borough Council,http://opendatacommunities.org/id/unitary-authority/southend,"ED Strategy, Change & Governance",Central Services to the Public,2005,Sainsburys Smkts,13/06/2023,12061160,28,Members Allowances Review on 20 and 21 June,Grocery Stores/Supermarkets (5411)
Southend-on-Sea Borough Council,http://opendatacommunities.org/id/unitary-authority/southend,"ED Strategy, Change & Governance",Central Services to the Public,2005,Sainsburys Smkts,13/06/2023,12061160,28,Members Allowances Review on 20 and 21 June,Grocery Stores/Supermarkets (5411)
Southend-on-Sea Borough Council,http://opendatacommunities.org/id/unitary-authority/southend,ED Children & Public Health,Children And Education Services,3265,Facebk Aaaeksxtk2,13/06/2023,12061160,400,Targeted paid Facebook and Insta advertising to raise awareness and drive prospective foster carer e *,Advertising Services (7311)
Southend-on-Sea Borough Council,http://opendatacommunities.org/id/unitary-authority/southend,ED Children & Public Health,Children And Education Services,3396,McDonalds,13/06/2023,12061160,1.49,LOR drink before attending court- looked after child.,Fast Food Restaurants (5814)
Southend-on-Sea Borough Council,http://opendatacommunities.org/id/unitary-authority/southend,ED Children & Public Health,Children And Education Services,3396,McDonalds,13/06/2023,12061160,1.89,LOR drink before attending court- looked after child.,Fast Food Restaurants (5814)
Southend-on-Sea Borough Council,http://opendatacommunities.org/id/unitary-authority/southend,ED Children & Public Health,Children And Education Services,3396,Starbucks Coffee,13/06/2023,12061160,6.15,Lunch for looked after child CH.,Fast Food Restaurants (5814)
Southend-on-Sea Borough Council,http://opendatacommunities.org/id/unitary-authority/southend,ED Children & Public Health,Children And Education Services,3396,Starbucks Coffee,13/06/2023,12061160,9,Lunch for looked after child CH.,Fast Food Restaurants (5814)
Southend-on-Sea Borough Council,http://opendatacommunities.org/id/unitary-authority/southend,ED Children & Public Health,Children And Education Services,3030,Premier,13/06/2023,12061160,6.5,Snacks for family centres,Grocery Stores/Supermarkets (5411)
Southend-on-Sea Borough Council,http://opendatacommunities.org/id/unitary-authority/southend,ED Adults & Communities,Cultural And Related Services,4256,Rjb Stone Ltd - Moto,13/06/2023,12061160,242.78,Retail Merchandise to sell in libraries.Have spoken to the company regarding changing Council name *,Family Clothing Stores (5651)
Southend-on-Sea Borough Council,http://opendatacommunities.org/id/unitary-authority/southend,ED Children & Public Health,Children And Education Services,3396,Kfc Greyhound Southend,13/06/2023,12061160,11.48,Young person open to AIPT Early Help - Food - FCK,Fast Food Restaurants (5814)
Southend-on-Sea Borough Council,http://opendatacommunities.org/id/unitary-authority/southend,ED Adults & Communities,Cultural And Related Services,4055,Bkg*hotel At Booking.C,13/06/2023,12061160,74.05,accommodation for Birmingham whilst attending a symposium in midlands art centre.,Travel Agencies (4722)
Southend-on-Sea Borough Council,http://opendatacommunities.org/id/unitary-authority/southend,ED Adults & Communities,Cultural And Related Services,4055,Trainline.Com,13/06/2023,12061160,86.56,train cost for journey to and from birmingham,Passenger Railways (4112)
Southend-on-Sea Borough Council,http://opendatacommunities.org/id/unitary-authority/southend,ED Children & Public Health,Children And Education Services,3030,Amznmktplace,13/06/2023,12061160,7.99,printable A4 card for creche for sessions,Misc Speciality Retail (5999)
Southend-on-Sea Borough Council,http://opendatacommunities.org/id/unitary-authority/southend,ED Children & Public Health,Children And Education Services,3030,Amznmktplace,13/06/2023,12061160,8.99,hangers for donation clothes at Centre Place family Centre,Misc Speciality Retail (5999)
Southend-on-Sea Borough Council,http://opendatacommunities.org/id/unitary-authority/southend,ED Children & Public Health,Children And Education Services,3030,Amznmktplace,13/06/2023,12061160,13.28,bulk wipes for summercourt - cleaning desks etc,Misc Speciality Retail (5999)
Southend-on-Sea Borough Council,http://opendatacommunities.org/id/unitary-authority/southend,ED Children & Public Health,Children And Education Services,3030,Amznmktplace,13/06/2023,12061160,15.23,bulk cleaning spray for summercourt family centre for toys,Misc Speciality Retail (5999)
Southend-on-Sea Borough Council,http://opendatacommunities.org/id/unitary-authority/southend,ED Adults & Communities,Cultural And Related Services,7505,Boc Gases,13/06/2023,12061160,110.96,replacement gas bottles,Household Appliance Stores (5722)
Southend-on-Sea Borough Council,http://opendatacommunities.org/id/unitary-authority/southend,ED Children & Public Health,Children And Education Services,3265,Paypal,13/06/2023,12061160,107.33,Payment differed as was set up via Paypal in us dollar,Med/Health Services - Def (8099)
Southend-on-Sea Borough Council,http://opendatacommunities.org/id/unitary-authority/southend,ED Adults & Communities,Cultural And Related Services,4055,Sainsburys S/mkts,13/06/2023,12061160,2.4,Plastic Food Bags - REDACTED PERSONAL DATA Exhibition,Grocery Stores/Supermarkets (5411)
Southend-on-Sea Borough Council,http://opendatacommunities.org/id/unitary-authority/southend,ED Children & Public Health,Children And Education Services,3471,Lidl Gb,13/06/2023,12061160,51.89,food for syc cafe,Grocery Stores/Supermarkets (5411)
Southend-on-Sea Borough Council,http://opendatacommunities.org/id/unitary-authority/southend,ED Children & Public Health,Children And Education Services,3791,Travelodge Gb0000,13/06/2023,12061160,753.7,hotel booking for a homeless family.,Travelodge (3615)
Southend-on-Sea Borough Council,http://opendatacommunities.org/id/unitary-authority/southend,ED Adults & Communities,Cultural And Related Services,4025,Wilko Retail Limited,13/06/2023,12061160,7,Laser pointer for use in Planetarium,Misc Gen Merchandise - Def (5399)
Southend-on-Sea Borough Council,http://opendatacommunities.org/id/unitary-authority/southend,ED Adults & Communities,Cultural And Related Services,4030,Www.Rossiicecream.Com,13/06/2023,12061160,104.75,Ice cream for sale Priory VC,Grocery Stores/Supermarkets (5411)
Southend-on-Sea Borough Council,http://opendatacommunities.org/id/unitary-authority/southend,ED Children & Public Health,Children And Education Services,3396,McDonalds,13/06/2023,12061160,7.69,Positive Activity - Food for IB,Fast Food Restaurants (5814)
Southend-on-Sea Borough Council,http://opendatacommunities.org/id/unitary-authority/southend,ED Growth & Housing,Planning Services,5641,Royals Southend Car Pa,13/06/2023,12061160,8,Parking cost whilst running first session of Self Employment Course and promo in Southend for First *,"Parking Lots, Meters, Garages (7523)"
Southend-on-Sea Borough Council,http://opendatacommunities.org/id/unitary-authority/southend,"ED Strategy, Change & Governance",Central Services to the Public,7130,Dpd Wl,13/06/2023,12061160,70.34,"DPD laptop delivery including insurance for AN (Application Support Specialist), requested by SM (Pr *",Courier Services (4215)
Southend-on-Sea Borough Council,http://opendatacommunities.org/id/unitary-authority/southend,ED Children & Public Health,Children And Education Services,3471,Amznmktplace,13/06/2023,12061160,6.99,"Black sugar paper 20 sheets for use at St Cedd's yoith group,",Misc Speciality Retail (5999)
Southend-on-Sea Borough Council,http://opendatacommunities.org/id/unitary-authority/southend,ED Children & Public Health,Children And Education Services,3471,Amznmktplace,13/06/2023,12061160,8.7,White acrylic paint for use at adult ary group at Shoeburyness Youth Centre run by REDACTED PERSONAL DATA,Misc Speciality Retail (5999)
Southend-on-Sea Borough Council,http://opendatacommunities.org/id/unitary-authority/southend,ED Children & Public Health,Children And Education Services,3471,Amznmktplace,13/06/2023,12061160,20.1,Soft football for use indoors at St Cedd's youth group sessions.,Misc Speciality Retail (5999)
Southend-on-Sea Borough Council,http://opendatacommunities.org/id/unitary-authority/southend,ED Adults & Communities,Cultural And Related Services,4285,Amznmktplace,14/06/2023,12061160,5.17,Watering can to help maintain plants in public areas at Kent Elms Library,Misc Speciality Retail (5999)
Southend-on-Sea Borough Council,http://opendatacommunities.org/id/unitary-authority/southend,ED Adults & Communities,Adult Social Care,1180,Greaterangliacom,14/06/2023,12061160,32.3,Train travel from Southend East to Vauxhall to attend uni lectures,Passenger Railways (4112)
Southend-on-Sea Borough Council,http://opendatacommunities.org/id/unitary-authority/southend,ED Children & Public Health,Children And Education Services,3265,Facebk 7xztksxtk2,14/06/2023,12061160,10.49,Targeted paid Facebook and Insta advertising to raise awareness and drive prospective foster carer e *,Advertising Services (7311)
Southend-on-Sea Borough Council,http://opendatacommunities.org/id/unitary-authority/southend,ED Children & Public Health,Children And Education Services,3396,Lidl Gb Southend,14/06/2023,12061160,1.49,drink for the client - RS,Grocery Stores/Supermarkets (5411)
Southend-on-Sea Borough Council,http://opendatacommunities.org/id/unitary-authority/southend,ED Children & Public Health,Children And Education Services,3396,McDonalds,14/06/2023,12061160,2.69,REFRESHEMENTS FOR YOUNG PERSON - KG,Fast Food Restaurants (5814)
Southend-on-Sea Borough Council,http://opendatacommunities.org/id/unitary-authority/southend,ED Children & Public Health,Children And Education Services,3396,McDonalds 859,14/06/2023,12061160,2.13,REFRESHMENTS FOR CLIENT - SB,Fast Food Restaurants (5814)
Southend-on-Sea Borough Council,http://opendatacommunities.org/id/unitary-authority/southend,ED Children & Public Health,Children And Education Services,3396,McDonalds 859,14/06/2023,12061160,3.48,REFRESHMENTS FOR CLIENT - SB,Fast Food Restaurants (5814)
Southend-on-Sea Borough Council,http://opendatacommunities.org/id/unitary-authority/southend,ED Children & Public Health,Children And Education Services,3396,McDonalds,14/06/2023,12061160,1.13,BREAKFAST FOR YOUNG PERSON AND HIS SIBLING - RS,Fast Food Restaurants (5814)
Southend-on-Sea Borough Council,http://opendatacommunities.org/id/unitary-authority/southend,ED Children & Public Health,Children And Education Services,3396,McDonalds,14/06/2023,12061160,6.95,BREAKFAST FOR YOUNG PERSON AND HIS SIBLING - RS,Fast Food Restaurants (5814)
Southend-on-Sea Borough Council,http://opendatacommunities.org/id/unitary-authority/southend,ED Children & Public Health,Children And Education Services,3396,McDonalds 859,14/06/2023,12061160,5.97,food bought for ET whilst engaging her in interventions around cse,Fast Food Restaurants (5814)
Southend-on-Sea Borough Council,http://opendatacommunities.org/id/unitary-authority/southend,ED Children & Public Health,Children And Education Services,3396,McDonalds,14/06/2023,12061160,8.08,food bought for ET as part of postive activity. I understand that you cannot see the receipt detail *,Fast Food Restaurants (5814)
Southend-on-Sea Borough Council,http://opendatacommunities.org/id/unitary-authority/southend,ED Children & Public Health,Children And Education Services,3030,Amznmktplace,14/06/2023,12061160,11.87,laminating pouches for Cambridge Road family centre,Misc Speciality Retail (5999)
Southend-on-Sea Borough Council,http://opendatacommunities.org/id/unitary-authority/southend,ED Children & Public Health,Children And Education Services,3030,Amznmktplace,14/06/2023,12061160,18.99,bulk buy toilet rolls for summercourt family centre,Misc Speciality Retail (5999)
Southend-on-Sea Borough Council,http://opendatacommunities.org/id/unitary-authority/southend,ED Children & Public Health,Children And Education Services,3030,Amznbusiness,14/06/2023,12061160,30.68,hanging files for eastwood family centre,Misc Speciality Retail (5999)
Southend-on-Sea Borough Council,http://opendatacommunities.org/id/unitary-authority/southend,ED Children & Public Health,Children And Education Services,3030,Amznmktplace,14/06/2023,12061160,47.45,bulk hand towel order for Summercourt family centre,Misc Speciality Retail (5999)
Southend-on-Sea Borough Council,http://opendatacommunities.org/id/unitary-authority/southend,ED Children & Public Health,Children And Education Services,3471,Lidl Gb Southend,14/06/2023,12061160,2.58,food for syc cafe,Grocery Stores/Supermarkets (5411)
Southend-on-Sea Borough Council,http://opendatacommunities.org/id/unitary-authority/southend,ED Children & Public Health,Children And Education Services,3030,Wm Morrisons Store,14/06/2023,12061160,14.2,snack for family centres,Grocery Stores/Supermarkets (5411)
Southend-on-Sea Borough Council,http://opendatacommunities.org/id/unitary-authority/southend,ED Children & Public Health,Children And Education Services,3492,Www.Argos.Co.Uk,15/06/2023,12061160,89.99,Washing machine breakdown cover - prevent further finance,Department Stores (5311)
Southend-on-Sea Borough Council,http://opendatacommunities.org/id/unitary-authority/southend,ED Children & Public Health,Children And Education Services,3492,Www.Argos.Co.Uk,15/06/2023,12061160,210,Washing Machine for family,Department Stores (5311)
Southend-on-Sea Borough Council,http://opendatacommunities.org/id/unitary-authority/southend,ED Children & Public Health,Children And Education Services,3492,Trainline.Com,15/06/2023,12061160,13.29,SW to visit 2 YP in care for statutory visits.REDACTED PERSONAL DATA was one ID number Team is CLA Team,Passenger Railways (4112)
Southend-on-Sea Borough Council,http://opendatacommunities.org/id/unitary-authority/southend,ED Children & Public Health,Children And Education Services,3492,Trainline.Com,15/06/2023,12061160,65.69,CLA Team SW to visit 2 YP in locations out of area. TM agreed to spend REDACTED PERSONAL DATA,Passenger Railways (4112)
Southend-on-Sea Borough Council,http://opendatacommunities.org/id/unitary-authority/southend,ED Children & Public Health,Children And Education Services,3492,Trainline.Com,15/06/2023,12061160,74.09,SW to visit 2 YP in care out of area-agreed by TM in CLA Team; REDACTED PERSONAL DATA,Passenger Railways (4112)
Southend-on-Sea Borough Council,http://opendatacommunities.org/id/unitary-authority/southend,ED Children & Public Health,Children And Education Services,3480,Ac Radio Cabs Limited,15/06/2023,12061160,20,Emergency taxi for respite of a child to Little Havens Hospice,Taxicabs/Limousines (4121)
Southend-on-Sea Borough Council,http://opendatacommunities.org/id/unitary-authority/southend,ED Adults & Communities,Cultural And Related Services,7111,Thomson Reuters UK Ltd,15/06/2023,12061160,96,Contract purchased for tender Prj 1791,Professional Services - Def (8999)
Southend-on-Sea Borough Council,http://opendatacommunities.org/id/unitary-authority/southend,ED Adults & Communities,Cultural And Related Services,7515,Lidl Gb,15/06/2023,12061160,4.54,Flowers for floristry order,Grocery Stores/Supermarkets (5411)
Southend-on-Sea Borough Council,http://opendatacommunities.org/id/unitary-authority/southend,ED Adults & Communities,Cultural And Related Services,7515,Asda Superstore,15/06/2023,12061160,8.85,Flowers for floristry order,Grocery Stores/Supermarkets (5411)
Southend-on-Sea Borough Council,http://opendatacommunities.org/id/unitary-authority/southend,ED Adults & Communities,Cultural And Related Services,7515,Sumup *estuary Wholesale,15/06/2023,12061160,14.56,Flowers for floristry order,Misc Speciality Retail (5999)
Southend-on-Sea Borough Council,http://opendatacommunities.org/id/unitary-authority/southend,ED Adults & Communities,Cultural And Related Services,4030,Amznmktplace,15/06/2023,12061160,11.24,Materials for Anglo Saxon event activities at Prittlewell Priroy,Misc Speciality Retail (5999)
Southend-on-Sea Borough Council,http://opendatacommunities.org/id/unitary-authority/southend,ED Children & Public Health,Children And Education Services,3030,Tesco Stores 3177,15/06/2023,12061160,8.54,Resources for Family Centre sessions,Grocery Stores/Supermarkets (5411)
Southend-on-Sea Borough Council,http://opendatacommunities.org/id/unitary-authority/southend,ED Children & Public Health,Children And Education Services,3396,Starbucks Coffee,15/06/2023,12061160,5.55,SG- Lunch. CIN.,Fast Food Restaurants (5814)
Southend-on-Sea Borough Council,http://opendatacommunities.org/id/unitary-authority/southend,ED Children & Public Health,Children And Education Services,3396,Starbucks Coffee,15/06/2023,12061160,14.55,SG- Lunch. CIN.,Fast Food Restaurants (5814)
Southend-on-Sea Borough Council,http://opendatacommunities.org/id/unitary-authority/southend,ED Children & Public Health,Children And Education Services,3396,McDonalds,15/06/2023,12061160,2.53,food bought for HC as part of postive engagment,Fast Food Restaurants (5814)
Southend-on-Sea Borough Council,http://opendatacommunities.org/id/unitary-authority/southend,ED Children & Public Health,Children And Education Services,3396,McDonalds,15/06/2023,12061160,4.36,food bought for HC as part of postive engagment,Fast Food Restaurants (5814)
Southend-on-Sea Borough Council,http://opendatacommunities.org/id/unitary-authority/southend,"ED Strategy, Change & Governance",Central Services to the Public,7140,Www.Stage-Gear.Co.Uk,15/06/2023,12061160,132.04,replacement batteries for civic microphones,Household Appliance Stores (5722)
Southend-on-Sea Borough Council,http://opendatacommunities.org/id/unitary-authority/southend,ED Children & Public Health,Children And Education Services,3396,Kfc Greyhound Southend,15/06/2023,12061160,5.97,Young person open to social care - food purchased - SH,Fast Food Restaurants (5814)
Southend-on-Sea Borough Council,http://opendatacommunities.org/id/unitary-authority/southend,ED Children & Public Health,Children And Education Services,3396,Subway 66233 Toomey Rochf,15/06/2023,12061160,1.99,Young person open to AIPT Early Help - Food - AD,Fast Food Restaurants (5814)
Southend-on-Sea Borough Council,http://opendatacommunities.org/id/unitary-authority/southend,ED Children & Public Health,Children And Education Services,3396,Subway 66233 Toomey Rochf,15/06/2023,12061160,7.09,Young person open to AIPT Early Help - Food - AD,Fast Food Restaurants (5814)
Southend-on-Sea Borough Council,http://opendatacommunities.org/id/unitary-authority/southend,ED Children & Public Health,Children And Education Services,3030,Amznmktplace,15/06/2023,12061160,12.34,laminating pouches for friars family centre,Misc Speciality Retail (5999)
Southend-on-Sea Borough Council,http://opendatacommunities.org/id/unitary-authority/southend,ED Adults & Communities,Cultural And Related Services,4055,Ryman,15/06/2023,12061160,7.99,Supplies for SCCN meeting,Stationery Stores (5943)
Southend-on-Sea Borough Council,http://opendatacommunities.org/id/unitary-authority/southend,ED Adults & Communities,Cultural And Related Services,4055,Ryman,15/06/2023,12061160,17.98,Stationary for SCC meeting and exhibition mail out,Stationery Stores (5943)
Southend-on-Sea Borough Council,http://opendatacommunities.org/id/unitary-authority/southend,ED Adults & Communities,Adult Social Care,1231,Trainline,15/06/2023,12061160,100.01,Train tickets x 3 to attend training course in london,Passenger Railways (4112)
Southend-on-Sea Borough Council,http://opendatacommunities.org/id/unitary-authority/southend,ED Adults & Communities,Cultural And Related Services,7510,Leigh Lock And Safe Co Lt,15/06/2023,12061160,59.5,Keys for padlocks,Business Services - Default (7399)
Southend-on-Sea Borough Council,http://opendatacommunities.org/id/unitary-authority/southend,ED Adults & Communities,Central Services to the Public,2041,Park Inn Senpd F&b,15/06/2023,12061160,240,Room booking at the Park Inn hotel for English class for Afghan guests,Park Inns International (3553)
Southend-on-Sea Borough Council,http://opendatacommunities.org/id/unitary-authority/southend,ED Adults & Communities,Cultural And Related Services,4120,Amznmktplace,15/06/2023,12061160,7.91,Velcro for use on the pier,Misc Speciality Retail (5999)
Southend-on-Sea Borough Council,http://opendatacommunities.org/id/unitary-authority/southend,ED Adults & Communities,Cultural And Related Services,4120,Amznmktplace,15/06/2023,12061160,16.75,Paint for use on the pier,Misc Speciality Retail (5999)
Southend-on-Sea Borough Council,http://opendatacommunities.org/id/unitary-authority/southend,ED Adults & Communities,Cultural And Related Services,4225,Crazydomainshosting,15/06/2023,12061160,8.6,Southend Tourism Partnership - annual domain renewal fee.,Computer Network/Info Svcs (4816)
Southend-on-Sea Borough Council,http://opendatacommunities.org/id/unitary-authority/southend,ED Children & Public Health,Children And Education Services,3492,Travelodge Gb0000,16/06/2023,12061160,91.78,Hotel accomodation for parent to attend court CPS3,Travelodge (3615)
Southend-on-Sea Borough Council,http://opendatacommunities.org/id/unitary-authority/southend,,,-,Screwfix Dir. Ltd,16/06/2023,12061160,52.96,`items for hampton court show,Lumber/Build. Supply Stores (5211)
Southend-on-Sea Borough Council,http://opendatacommunities.org/id/unitary-authority/southend,ED Children & Public Health,Children And Education Services,3992,Pgl Travel,16/06/2023,12061160,-419,Credit Voucher Pgl Travelcm was due to spend a week with outdoor centre however due to missing epis *,Travel Agencies (4722)
Southend-on-Sea Borough Council,http://opendatacommunities.org/id/unitary-authority/southend,ED Adults & Communities,Cultural And Related Services,4280,Amznmktplace,16/06/2023,12061160,16.95,USB sticks to download and store CCTV images and video for Westcliff and Leigh Library,Misc Speciality Retail (5999)
Southend-on-Sea Borough Council,http://opendatacommunities.org/id/unitary-authority/southend,ED Adults & Communities,Cultural And Related Services,4015,Sp Handprinted,16/06/2023,12061160,68.45,Materials for craft workshops at museum sites,Misc Gen Merchandise - Def (5399)
Southend-on-Sea Borough Council,http://opendatacommunities.org/id/unitary-authority/southend,ED Children & Public Health,Children And Education Services,3396,Kfc Greyhound Southend,16/06/2023,12061160,10.68,food bought for JI as part of engagement.also the vat on receipt says 1.38- but I do not know how *,Fast Food Restaurants (5814)
Southend-on-Sea Borough Council,http://opendatacommunities.org/id/unitary-authority/southend,ED Children & Public Health,Children And Education Services,3441,The Fish House,16/06/2023,12061160,12.7,Refreshments for young person as positive actvity,Fast Food Restaurants (5814)
Southend-on-Sea Borough Council,http://opendatacommunities.org/id/unitary-authority/southend,ED Adults & Communities,Cultural And Related Services,4055,Www.Flints.Co.Uk,16/06/2023,12061160,216.54,Paint for REDACTED PERSONAL DATA Exhibition,Mens/Womens Clothing Stores (5691)
Southend-on-Sea Borough Council,http://opendatacommunities.org/id/unitary-authority/southend,ED Children & Public Health,Children And Education Services,3692,Hm Passport Office,16/06/2023,12061160,53.5,Passport application NB,Govt Serv - Default (9399)
Southend-on-Sea Borough Council,http://opendatacommunities.org/id/unitary-authority/southend,ED Children & Public Health,Children And Education Services,3471,Lidl Gb Southend,16/06/2023,12061160,4.89,food for syc cafe,Grocery Stores/Supermarkets (5411)
Southend-on-Sea Borough Council,http://opendatacommunities.org/id/unitary-authority/southend,ED Children & Public Health,Children And Education Services,3231,Paypal,16/06/2023,12061160,649.12,UK Youth Parliament annual membership for one year (includes the cost of paying by PayPal which is t *,Charitable/Soc Service Orgs (8398)
Southend-on-Sea Borough Council,http://opendatacommunities.org/id/unitary-authority/southend,ED Children & Public Health,Children And Education Services,3396,McDonalds 859,16/06/2023,12061160,7.18,Food for AR - positive activity,Fast Food Restaurants (5814)
Southend-on-Sea Borough Council,http://opendatacommunities.org/id/unitary-authority/southend,ED Adults & Communities,Cultural And Related Services,4120,Amznmktplace,16/06/2023,12061160,9.15,Gorilla glue for use on the pier,Misc Speciality Retail (5999)
Southend-on-Sea Borough Council,http://opendatacommunities.org/id/unitary-authority/southend,ED Adults & Communities,Cultural And Related Services,4225,Iceland,17/06/2023,12061160,7.75,Armed Forces Day - biscuits for volunteers/participants,Grocery Stores/Supermarkets (5411)
Southend-on-Sea Borough Council,http://opendatacommunities.org/id/unitary-authority/southend,ED Adults & Communities,Cultural And Related Services,4225,Poundland Ltd 1138,17/06/2023,12061160,8.5,Armed Forces Day - Water/Refreshments for volunteers and participants.,Discount Stores (5310)
Southend-on-Sea Borough Council,http://opendatacommunities.org/id/unitary-authority/southend,"ED Strategy, Change & Governance",Central Services to the Public,2045,Flickr.Com,17/06/2023,12061160,59.99,Flickr annual subscription,Business Services - Default (7399)
Southend-on-Sea Borough Council,http://opendatacommunities.org/id/unitary-authority/southend,ED Adults & Communities,Cultural And Related Services,4055,Tesco Stores 5241,17/06/2023,12061160,13.45,"Milk, Coffee and Biscuits - Contemporary Elders",Grocery Stores/Supermarkets (5411)
Southend-on-Sea Borough Council,http://opendatacommunities.org/id/unitary-authority/southend,ED Adults & Communities,Cultural And Related Services,4055,Tesco Stores 5241,17/06/2023,12061160,1.95,"Milk, Coffee and Biscuits - Contemporary Elders",Grocery Stores/Supermarkets (5411)
Southend-on-Sea Borough Council,http://opendatacommunities.org/id/unitary-authority/southend,ED Adults & Communities,Cultural And Related Services,4256,Amznmktplace,18/06/2023,12061160,9.29,Materials for Kent Elms for Summer Read,Misc Speciality Retail (5999)
Southend-on-Sea Borough Council,http://opendatacommunities.org/id/unitary-authority/southend,ED Adults & Communities,Adult Social Care,1209,Amznbusiness,18/06/2023,12061160,28.99,"Kenco Smooth Instant Coffee Refill 150g (Pack of 6, Total 900g) for Unit 8, The Forum",Misc Speciality Retail (5999)
Southend-on-Sea Borough Council,http://opendatacommunities.org/id/unitary-authority/southend,ED Adults & Communities,Cultural And Related Services,4120,P Chalkwell Sst,18/06/2023,12061160,5,Train ticket for pier fact finding away day.,Passenger Railways (4112)
Southend-on-Sea Borough Council,http://opendatacommunities.org/id/unitary-authority/southend,ED Children & Public Health,Children And Education Services,3492,Greater Anglia Trains,18/06/2023,12061160,23,Travel for parent to attend family time,Passenger Railways (4112)
Southend-on-Sea Borough Council,http://opendatacommunities.org/id/unitary-authority/southend,ED Adults & Communities,Cultural And Related Services,4225,Parking Eye Parking Fe,19/06/2023,12061160,3,Parking fee for Clacton Pier visit.,"Parking Lots, Meters, Garages (7523)"
Southend-on-Sea Borough Council,http://opendatacommunities.org/id/unitary-authority/southend,ED Adults & Communities,Cultural And Related Services,4225,The Poachers Pocket,19/06/2023,12061160,43.85,"Away day lunch, Soutwold Pier and Clacton Pier visit and research trip to collate ideas around Sou *",Eating Places/Restaurants (5812)
Southend-on-Sea Borough Council,http://opendatacommunities.org/id/unitary-authority/southend,"ED Strategy, Change & Governance",Central Services to the Public,7145,Biffa Waste Services Limi,19/06/2023,12061160,461.14,Refuse services - Porters Civic House,Utilities/Elec/Gas/H2O/Sani (4900)
Southend-on-Sea Borough Council,http://opendatacommunities.org/id/unitary-authority/southend,,,-,Swallow Aquatics,19/06/2023,12061160,154.94,water pump for Hampton court garden,Pet Stores/Food & Supply (5995)
Southend-on-Sea Borough Council,http://opendatacommunities.org/id/unitary-authority/southend,ED Adults & Communities,Cultural And Related Services,4285,Amznmktplace,19/06/2023,12061160,22.49,Toilet rolls for use by staff and customers at Kent Elms Library,Misc Speciality Retail (5999)
Southend-on-Sea Borough Council,http://opendatacommunities.org/id/unitary-authority/southend,ED Adults & Communities,Cultural And Related Services,4015,Amznmktplace,19/06/2023,12061160,4.98,Materials for craft workshops at museum sites,Misc Speciality Retail (5999)
Southend-on-Sea Borough Council,http://opendatacommunities.org/id/unitary-authority/southend,ED Adults & Communities,Cultural And Related Services,4015,Amznmktplace,19/06/2023,12061160,19.95,Materials for craft workshops at museum sites,Misc Speciality Retail (5999)
Southend-on-Sea Borough Council,http://opendatacommunities.org/id/unitary-authority/southend,ED Adults & Communities,Cultural And Related Services,4015,Amznmktplace,19/06/2023,12061160,25.54,Materials for craft workshops at museum sites,Misc Speciality Retail (5999)
Southend-on-Sea Borough Council,http://opendatacommunities.org/id/unitary-authority/southend,ED Finance & Resources,Housing Services,6046,Ferret Information Syste,19/06/2023,12061160,213.6,Training required for staff member to enable means test. Payment agreed with Barclaycard Admin,Schools - Default (8299)
Southend-on-Sea Borough Council,http://opendatacommunities.org/id/unitary-authority/southend,"ED Strategy, Change & Governance",Central Services to the Public,2005,Sainsburys S/Mkts,19/06/2023,12061160,15.3,Members Allowances Review on 20 and 21 June,Grocery Stores/Supermarkets (5411)
Southend-on-Sea Borough Council,http://opendatacommunities.org/id/unitary-authority/southend,ED Children & Public Health,Children And Education Services,3030,Lidl Gb Southend,19/06/2023,12061160,3.74,Resources for Family Centre sessions,Grocery Stores/Supermarkets (5411)
Southend-on-Sea Borough Council,http://opendatacommunities.org/id/unitary-authority/southend,ED Children & Public Health,Children And Education Services,3425,Amznmktplace,19/06/2023,12061160,4.99,Paracord clips for reparation,Misc Speciality Retail (5999)
Southend-on-Sea Borough Council,http://opendatacommunities.org/id/unitary-authority/southend,ED Adults & Communities,Cultural And Related Services,4055,Dub Kitchen,19/06/2023,12061160,4.75,Lunch for artist REDACTED PERSONAL DATA,Eating Places/Restaurants (5812)
Southend-on-Sea Borough Council,http://opendatacommunities.org/id/unitary-authority/southend,ED Children & Public Health,Children And Education Services,3249,Tesco Pfs 3702,19/06/2023,12061160,0.95,Refreshments purchased as going out of area for the day,Service Stations (5541)
Southend-on-Sea Borough Council,http://opendatacommunities.org/id/unitary-authority/southend,ED Children & Public Health,Children And Education Services,3249,Tesco Pfs 3702,19/06/2023,12061160,1,Refreshments purchased as going out of area for the day,Service Stations (5541)
Southend-on-Sea Borough Council,http://opendatacommunities.org/id/unitary-authority/southend,ED Children & Public Health,Children And Education Services,3249,Chelmsford Council,19/06/2023,12061160,5.7,Car parking for chelmsford (training),Govt Serv - Default (9399)
Southend-on-Sea Borough Council,http://opendatacommunities.org/id/unitary-authority/southend,ED Children & Public Health,Children And Education Services,3471,Booker Ltd - 38577234,19/06/2023,12061160,15.88,supplies for SYC cafe,Grocery Stores/Supermarkets (5411)
Southend-on-Sea Borough Council,http://opendatacommunities.org/id/unitary-authority/southend,ED Children & Public Health,Children And Education Services,3471,Booker Ltd - 38577234,19/06/2023,12061160,123.71,supplies for SYC cafe,Grocery Stores/Supermarkets (5411)
Southend-on-Sea Borough Council,http://opendatacommunities.org/id/unitary-authority/southend,ED Finance & Resources,Central Services to the Public,1035,Pbp Greater Anglia,19/06/2023,12061160,7.5,parking at wickford station for day for visit to 31ten on 19 june,"Parking Lots, Meters, Garages (7523)"
Southend-on-Sea Borough Council,http://opendatacommunities.org/id/unitary-authority/southend,ED Finance & Resources,Central Services to the Public,1035,Ncp Limited,19/06/2023,12061160,7.6,this was incorrectly charged and a refund has been issued and received on 21.6.23,"Parking Lots, Meters, Garages (7523)"
Southend-on-Sea Borough Council,http://opendatacommunities.org/id/unitary-authority/southend,ED Finance & Resources,Central Services to the Public,1035,Greater Anglia,19/06/2023,12061160,31.9,Train travel from wickford to Borough to visit 31Ten on data OPI project on 19 June,Passenger Railways (4112)
Southend-on-Sea Borough Council,http://opendatacommunities.org/id/unitary-authority/southend,ED Growth & Housing,Planning Services,5641,Sp Ne-Trophies,19/06/2023,12061160,533.84,Awards trophies for different categories for the Greater Essex Careers Hub academic year 2022/2023,Gift/Card/Novelty And Souvenir Stores (5947)
Southend-on-Sea Borough Council,http://opendatacommunities.org/id/unitary-authority/southend,ED Children & Public Health,Children And Education Services,3396,The Range,19/06/2023,12061160,15.76,Birthday and Closing gift for IC - bought with REDACTED PERSONAL DATA Social Worker,Misc Home Furnishing (5719)
Southend-on-Sea Borough Council,http://opendatacommunities.org/id/unitary-authority/southend,"ED Strategy, Change & Governance",Central Services to the Public,7130,Amznmktplace,20/06/2023,12061160,16.28,Compressed Air Duster x4 requested by TC (Service Desk Manager),Misc Speciality Retail (5999)
Southend-on-Sea Borough Council,http://opendatacommunities.org/id/unitary-authority/southend,"ED Strategy, Change & Governance",Central Services to the Public,7096,Lyreco UK Limited,20/06/2023,12061160,19.04,Stickers for post room for recorded and special delivery,Stationery Stores (5943)
Southend-on-Sea Borough Council,http://opendatacommunities.org/id/unitary-authority/southend,ED Adults & Communities,Cultural And Related Services,4030,B & Q 1372,20/06/2023,12061160,8.71,Materials for Anglo Saxon banner promoting event at Prittlewell Priory,Home Supply Warehouse Stores (5200)
Southend-on-Sea Borough Council,http://opendatacommunities.org/id/unitary-authority/southend,ED Adults & Communities,Cultural And Related Services,4015,Amznmktplace,20/06/2023,12061160,9.98,Materials for craft workshops at museum sites,Misc Speciality Retail (5999)
Southend-on-Sea Borough Council,http://opendatacommunities.org/id/unitary-authority/southend,ED Adults & Communities,Cultural And Related Services,4030,Hobbycraft Southend,20/06/2023,12061160,11.6,Materials for Anglo Saxon event activities at Prittlewell Priory,Artist/Craft Shops (5970)
Southend-on-Sea Borough Council,http://opendatacommunities.org/id/unitary-authority/southend,ED Adults & Communities,Cultural And Related Services,4015,Amznmktplace,20/06/2023,12061160,16.99,Materials for craft workshops at museum sites,Misc Speciality Retail (5999)
Southend-on-Sea Borough Council,http://opendatacommunities.org/id/unitary-authority/southend,ED Adults & Communities,Cultural And Related Services,4015,The Textile Society,20/06/2023,12061160,25,Annual membership fee for Textile Society - museums and galleries. A receipt has been requested but *,Charitable/Soc Service Orgs (8398)
Southend-on-Sea Borough Council,http://opendatacommunities.org/id/unitary-authority/southend,ED Neighbourhoods & Environment,Central Services to the Public,7175,Dvla Vehicle Tax,20/06/2023,12061160,165,vehicle tax renewal for 2023,Tax Payments (9311)
Southend-on-Sea Borough Council,http://opendatacommunities.org/id/unitary-authority/southend,ED Neighbourhoods & Environment,Central Services to the Public,7175,Dvla Vehicle Tax,20/06/2023,12061160,320,vehicle tax renewal for 2023,Tax Payments (9311)
Southend-on-Sea Borough Council,http://opendatacommunities.org/id/unitary-authority/southend,ED Neighbourhoods & Environment,Central Services to the Public,7175,Dvla Vehicle Tax,20/06/2023,12061160,320,vehicle tax renewal for 2023,Tax Payments (9311)
Southend-on-Sea Borough Council,http://opendatacommunities.org/id/unitary-authority/southend,ED Neighbourhoods & Environment,Central Services to the Public,7175,Dvla Vehicle Tax,20/06/2023,12061160,320,vehicle tax renewal for 2023,Tax Payments (9311)
Southend-on-Sea Borough Council,http://opendatacommunities.org/id/unitary-authority/southend,ED Neighbourhoods & Environment,Central Services to the Public,7175,Dvla Vehicle Tax,20/06/2023,12061160,320,vehicle tax renewal for 2023,Tax Payments (9311)
Southend-on-Sea Borough Council,http://opendatacommunities.org/id/unitary-authority/southend,ED Neighbourhoods & Environment,Central Services to the Public,7175,Dvla Vehicle Tax,20/06/2023,12061160,320,Vehicle road tax renewal for 2023,Tax Payments (9311)
Southend-on-Sea Borough Council,http://opendatacommunities.org/id/unitary-authority/southend,ED Neighbourhoods & Environment,Central Services to the Public,7175,Dvla Vehicle Tax,20/06/2023,12061160,320,vehicle tax renewal for 2023,Tax Payments (9311)
Southend-on-Sea Borough Council,http://opendatacommunities.org/id/unitary-authority/southend,ED Neighbourhoods & Environment,Central Services to the Public,7175,Dvla Vehicle Tax,20/06/2023,12061160,320,vehicle tax renewal for 2023,Tax Payments (9311)
Southend-on-Sea Borough Council,http://opendatacommunities.org/id/unitary-authority/southend,ED Neighbourhoods & Environment,Central Services to the Public,7175,Dvla Vehicle Tax,20/06/2023,12061160,320,vehicle tax renewal for 2023,Tax Payments (9311)
Southend-on-Sea Borough Council,http://opendatacommunities.org/id/unitary-authority/southend,ED Neighbourhoods & Environment,Central Services to the Public,7175,Dvla Vehicle Tax,20/06/2023,12061160,320,vehicle tax renewal for 2023,Tax Payments (9311)
Southend-on-Sea Borough Council,http://opendatacommunities.org/id/unitary-authority/southend,ED Finance & Resources,Central Services to the Public,7150,Kent County Council,20/06/2023,12061160,600,CBC Membership fee,Govt Serv - Default (9399)
Southend-on-Sea Borough Council,http://opendatacommunities.org/id/unitary-authority/southend,ED Children & Public Health,Children And Education Services,3436,Sainsburys S/Mkts,20/06/2023,12061160,6.4,Lunch with YP. NB.,Grocery Stores/Supermarkets (5411)
Southend-on-Sea Borough Council,http://opendatacommunities.org/id/unitary-authority/southend,ED Children & Public Health,Children And Education Services,3396,McDonalds,20/06/2023,12061160,2.99,REFRESHEMENTS FOR 2 CLIENTS - RO & RO,Fast Food Restaurants (5814)
Southend-on-Sea Borough Council,http://opendatacommunities.org/id/unitary-authority/southend,ED Children & Public Health,Children And Education Services,3396,McDonalds,20/06/2023,12061160,7.57,REFRESHEMENTS FOR 2 CLIENTS - RO & RO,Fast Food Restaurants (5814)
Southend-on-Sea Borough Council,http://opendatacommunities.org/id/unitary-authority/southend,ED Children & Public Health,Children And Education Services,3030,Home Bargains Southend,20/06/2023,12061160,7.17,Resources for Family Centre sessions,Hardware Stores (5251)
Southend-on-Sea Borough Council,http://opendatacommunities.org/id/unitary-authority/southend,ED Children & Public Health,Children And Education Services,3030,The Range,20/06/2023,12061160,40.64,Resources for Family Centre sessions,Misc Home Furnishing (5719)
Southend-on-Sea Borough Council,http://opendatacommunities.org/id/unitary-authority/southend,ED Children & Public Health,Children And Education Services,3030,Aldi Stores Ltd,20/06/2023,12061160,17.33,Snacks and resources for family centres,Grocery Stores/Supermarkets (5411)
Southend-on-Sea Borough Council,http://opendatacommunities.org/id/unitary-authority/southend,ED Children & Public Health,Children And Education Services,3455,C2c-Online.Co.Uk,20/06/2023,12061160,94.8,Train tickets for REDACTED PERSONAL DATA to attend training,Passenger Railways (4112)
Southend-on-Sea Borough Council,http://opendatacommunities.org/id/unitary-authority/southend,ED Children & Public Health,Children And Education Services,3396,Kfc Greyhound Southend,20/06/2023,12061160,8.48,Young person open to social care - food purchased - SH,Fast Food Restaurants (5814)
Southend-on-Sea Borough Council,http://opendatacommunities.org/id/unitary-authority/southend,ED Children & Public Health,Children And Education Services,3396,Sumup *rosy Lee,20/06/2023,12061160,17.85,Young person open to AIPT Early Help - Breakfast,Grocery Stores/Supermarkets (5411)
Southend-on-Sea Borough Council,http://opendatacommunities.org/id/unitary-authority/southend,ED Finance & Resources,Central Services to the Public,1025,South Essex Property Serv,20/06/2023,12061160,59.5,refreshments for LGA peer Review team Adult Social Care,Eating Places/Restaurants (5812)
Southend-on-Sea Borough Council,http://opendatacommunities.org/id/unitary-authority/southend,ED Adults & Communities,Cultural And Related Services,4055,Molo Lounge,20/06/2023,12061160,27.35,Lunch food for colleagues coming for an R&D visit from Cornwall.,Bars/Taverns/Lounges/Discos (5813)
Southend-on-Sea Borough Council,http://opendatacommunities.org/id/unitary-authority/southend,ED Children & Public Health,Children And Education Services,3265,Www.Superp* Super Pizz,20/06/2023,12061160,29.69,Pizza's ordered for a fostering event,Caterers (5811)
Southend-on-Sea Borough Council,http://opendatacommunities.org/id/unitary-authority/southend,"ED Strategy, Change & Governance",Central Services to the Public,7140,Amazon.Co.Uk,20/06/2023,12061160,42.8,Non slip mats for on the work surfaces in the 2 workshops at the civic centre.,Other Direct Marketers (5969)
Southend-on-Sea Borough Council,http://opendatacommunities.org/id/unitary-authority/southend,ED Children & Public Health,Children And Education Services,3290,Rectory Lane West,20/06/2023,12061160,7.5,travel expenses for training and development day,"Parking Lots, Meters, Garages (7523)"
Southend-on-Sea Borough Council,http://opendatacommunities.org/id/unitary-authority/southend,ED Children & Public Health,Children And Education Services,3471,Lidl Gb,20/06/2023,12061160,1.76,food supplies for SYC cafe and youth work,Grocery Stores/Supermarkets (5411)
Southend-on-Sea Borough Council,http://opendatacommunities.org/id/unitary-authority/southend,ED Children & Public Health,Children And Education Services,3471,Lidl Gb,20/06/2023,12061160,42.21,food supplies for SYC cafe and youth work,Grocery Stores/Supermarkets (5411)
Southend-on-Sea Borough Council,http://opendatacommunities.org/id/unitary-authority/southend,ED Children & Public Health,Children And Education Services,3471,Asda Superstore,20/06/2023,12061160,20.5,supplies for SYC cafe and youth work,Grocery Stores/Supermarkets (5411)
Southend-on-Sea Borough Council,http://opendatacommunities.org/id/unitary-authority/southend,ED Children & Public Health,Children And Education Services,3471,Asda Superstore,20/06/2023,12061160,23.55,supplies for SYC cafe and youth work,Grocery Stores/Supermarkets (5411)
Southend-on-Sea Borough Council,http://opendatacommunities.org/id/unitary-authority/southend,ED Adults & Communities,Cultural And Related Services,4120,Amznmktplace,20/06/2023,12061160,10.98,For use on the pier,Misc Speciality Retail (5999)
Southend-on-Sea Borough Council,http://opendatacommunities.org/id/unitary-authority/southend,ED Children & Public Health,Children And Education Services,3030,Lidl Gb Southend,20/06/2023,12061160,13.5,snack resources for family centres,Grocery Stores/Supermarkets (5411)
Southend-on-Sea Borough Council,http://opendatacommunities.org/id/unitary-authority/southend,ED Adults & Communities,Cultural And Related Services,4055,Www.Majestic.Co.Uk,19/06/2023,12061160,274.42,Drink for REDACTED PERSONAL DATA opening. Donations received as income,Pkg Stores/Beer/Wine/Liquor (5921)
Southend-on-Sea Borough Council,http://opendatacommunities.org/id/unitary-authority/southend,ED Children & Public Health,Children And Education Services,3492,Companion Care (Sos) Ltd,21/06/2023,12061160,14.01,Flea treatment for home with newborn baby,Veterinary Services (742)
Southend-on-Sea Borough Council,http://opendatacommunities.org/id/unitary-authority/southend,ED Children & Public Health,Children And Education Services,3492,Asda Superstore,21/06/2023,12061160,3.95,Shopping for newborn baby,Grocery Stores/Supermarkets (5411)
Southend-on-Sea Borough Council,http://opendatacommunities.org/id/unitary-authority/southend,ED Children & Public Health,Children And Education Services,3492,Asda Superstore,21/06/2023,12061160,14.5,Shopping for newborn baby,Grocery Stores/Supermarkets (5411)
Southend-on-Sea Borough Council,http://opendatacommunities.org/id/unitary-authority/southend,ED Children & Public Health,Children And Education Services,3290,Costa Coffee 43010966,21/06/2023,12061160,3.65,Hot chocolate purchased for service user,Fast Food Restaurants (5814)
Southend-on-Sea Borough Council,http://opendatacommunities.org/id/unitary-authority/southend,ED Adults & Communities,Cultural And Related Services,7515,Asda Superstore,21/06/2023,12061160,7.75,Flowers for floristry order. VAT Number GB 3620127 92 should appear on the back in the 2nd image bu *,Grocery Stores/Supermarkets (5411)
Southend-on-Sea Borough Council,http://opendatacommunities.org/id/unitary-authority/southend,ED Adults & Communities,Cultural And Related Services,7515,Lidl Gb,21/06/2023,12061160,9.67,Flowers for floristry order.,Grocery Stores/Supermarkets (5411)
Southend-on-Sea Borough Council,http://opendatacommunities.org/id/unitary-authority/southend,"ED Strategy, Change & Governance",Central Services to the Public,2005,Roslin Beach Hotel,21/06/2023,12061160,318.4,Members Allowances Review on 20 and 21 June accommodation for REDACTED PERSONAL DATA,Lodging/Hotels/Motels/Resorts (7011)
Southend-on-Sea Borough Council,http://opendatacommunities.org/id/unitary-authority/southend,ED Children & Public Health,Children And Education Services,3436,McDonalds,21/06/2023,12061160,5.98,Lunch for YP. HP.,Fast Food Restaurants (5814)
Southend-on-Sea Borough Council,http://opendatacommunities.org/id/unitary-authority/southend,ED Children & Public Health,Children And Education Services,3436,McDonalds,21/06/2023,12061160,1.29,Lunch for YP. HP.,Fast Food Restaurants (5814)
Southend-on-Sea Borough Council,http://opendatacommunities.org/id/unitary-authority/southend,ED Children & Public Health,Children And Education Services,3396,Kfc Greyhound Southend,21/06/2023,12061160,2.49,client refreshments - rsreceipt lost approval email attached,Fast Food Restaurants (5814)
Southend-on-Sea Borough Council,http://opendatacommunities.org/id/unitary-authority/southend,ED Children & Public Health,Children And Education Services,3396,McDonalds 859,21/06/2023,12061160,9.81,client refreshments - rsreceipt lost approval email attached,Fast Food Restaurants (5814)
Southend-on-Sea Borough Council,http://opendatacommunities.org/id/unitary-authority/southend,ED Children & Public Health,Children And Education Services,3396,McDonalds,21/06/2023,12061160,2.21,REFRESHMENTS FOR CLIENT -KG,Fast Food Restaurants (5814)
Southend-on-Sea Borough Council,http://opendatacommunities.org/id/unitary-authority/southend,ED Children & Public Health,Children And Education Services,3396,McDonalds,21/06/2023,12061160,2.69,REFRESHMENTS FOR CLIENT -KG,Fast Food Restaurants (5814)
Southend-on-Sea Borough Council,http://opendatacommunities.org/id/unitary-authority/southend,ED Children & Public Health,Children And Education Services,3396,McDonalds,21/06/2023,12061160,5.18,REFRESHMENTS FOR CLIENT -KG,Fast Food Restaurants (5814)
Southend-on-Sea Borough Council,http://opendatacommunities.org/id/unitary-authority/southend,ED Neighbourhoods & Environment,Environmental And Regulatory Services,7035,192.Com,21/06/2023,12061160,65.94,Subscription for 192.com assist in enforcement,Computers/Peripherals/Software (5045)
Southend-on-Sea Borough Council,http://opendatacommunities.org/id/unitary-authority/southend,ED Children & Public Health,Children And Education Services,3030,Asda Superstore,21/06/2023,12061160,1,Resources for family centres,Grocery Stores/Supermarkets (5411)
Southend-on-Sea Borough Council,http://opendatacommunities.org/id/unitary-authority/southend,ED Children & Public Health,Children And Education Services,3030,Asda Superstore,21/06/2023,12061160,2.24,Resources for family centres,Grocery Stores/Supermarkets (5411)
Southend-on-Sea Borough Council,http://opendatacommunities.org/id/unitary-authority/southend,ED Children & Public Health,Children And Education Services,3396,Sainsburys S/Mkts,21/06/2023,12061160,4,Young person open to Social Care - Food purchase - MG,Grocery Stores/Supermarkets (5411)
Southend-on-Sea Borough Council,http://opendatacommunities.org/id/unitary-authority/southend,ED Adults & Communities,Cultural And Related Services,4055,Toolstation Ltd,21/06/2023,12061160,3.58,Black Cable Clips 7mm - 'Unstable Condition' Exhibition,Lumber/Build. Supply Stores (5211)
Southend-on-Sea Borough Council,http://opendatacommunities.org/id/unitary-authority/southend,ED Adults & Communities,Cultural And Related Services,4055,Hobbycraft Southend,21/06/2023,12061160,18.1,Materials for Art Club,Artist/Craft Shops (5970)
Southend-on-Sea Borough Council,http://opendatacommunities.org/id/unitary-authority/southend,ED Adults & Communities,Cultural And Related Services,4055,Toolstation Ltd,21/06/2023,12061160,26.43,Black Cable ties and base - 'Unstable Condition' exhibition,Lumber/Build. Supply Stores (5211)
Southend-on-Sea Borough Council,http://opendatacommunities.org/id/unitary-authority/southend,ED Children & Public Health,Children And Education Services,3249,Russell Squeeze,21/06/2023,12061160,11,"Team conference in London, amount was for refreshments for team.",Grocery Stores/Supermarkets (5411)
Southend-on-Sea Borough Council,http://opendatacommunities.org/id/unitary-authority/southend,ED Children & Public Health,Children And Education Services,3249,Wasabi Russell Square,21/06/2023,12061160,19.25,Team away day for conference in London. This was for lunch purchased for the three team members whil *,Eating Places/Restaurants (5812)
Southend-on-Sea Borough Council,http://opendatacommunities.org/id/unitary-authority/southend,ED Children & Public Health,Children And Education Services,3249,P Shoeburyness Sst,21/06/2023,12061160,32.9,Train fare for conference in London.,Passenger Railways (4112)
Southend-on-Sea Borough Council,http://opendatacommunities.org/id/unitary-authority/southend,ED Children & Public Health,Children And Education Services,3396,Tesco Stores 3177,21/06/2023,12061160,20,School shirts purchased for vulnerable young person (BT) subject to a CP Plan. AIPT contact.,Grocery Stores/Supermarkets (5411)
Southend-on-Sea Borough Council,http://opendatacommunities.org/id/unitary-authority/southend,ED Finance & Resources,Central Services to the Public,1035,Ncp Limited,21/06/2023,12061160,-7.6,Credit Voucher Ncp Limited. refund for incorrect parking charge,"Parking Lots, Meters, Garages (7523)"
Southend-on-Sea Borough Council,http://opendatacommunities.org/id/unitary-authority/southend,ED Adults & Communities,Central Services to the Public,2041,Royals Southend Car Pa,21/06/2023,12061160,2.3,Parking to attend support session to Afghan guests at Park Inn hotel,"Parking Lots, Meters, Garages (7523)"
Southend-on-Sea Borough Council,http://opendatacommunities.org/id/unitary-authority/southend,ED Adults & Communities,Central Services to the Public,2041,Royals Southend Car Pa,21/06/2023,12061160,3.5,Parking to attend support session for Afghan guests at Park Inn hotel,"Parking Lots, Meters, Garages (7523)"
Southend-on-Sea Borough Council,http://opendatacommunities.org/id/unitary-authority/southend,ED Adults & Communities,Central Services to the Public,2041,Park Inn Senpd F&b,21/06/2023,12061160,240,Room booking on 22/06/2023 for English class for Afghan women at Park Inn hotel,Park Inns International (3553)
Southend-on-Sea Borough Council,http://opendatacommunities.org/id/unitary-authority/southend,ED Children & Public Health,Children And Education Services,3492,Www.Argos.Co.Uk,21/06/2023,12061160,77.5,Kitchen essentials for a family with No recalls to Public Funds,Department Stores (5311)
Southend-on-Sea Borough Council,http://opendatacommunities.org/id/unitary-authority/southend,ED Children & Public Health,Children And Education Services,3492,Www.Argos.Co.Uk,21/06/2023,12061160,200,Pram for a family on low income (sorry i could not find what to code it under),Department Stores (5311)
Southend-on-Sea Borough Council,http://opendatacommunities.org/id/unitary-authority/southend,ED Growth & Housing,Planning Services,5641,4imprint Direct Ltd,21/06/2023,12061160,443.98,Table cloth and pens for Halo June 23,Misc Speciality Retail (5999)
Southend-on-Sea Borough Council,http://opendatacommunities.org/id/unitary-authority/southend,ED Children & Public Health,Children And Education Services,3690,Wimpy Upminster,21/06/2023,12061160,25.44,Direct work visit BA,Fast Food Restaurants (5814)
Southend-on-Sea Borough Council,http://opendatacommunities.org/id/unitary-authority/southend,ED Growth & Housing,Planning Services,5641,Southend Parking,21/06/2023,12061160,0.08,Parking whilst attending meeting with ABSS June 23,"Parking Lots, Meters, Garages (7523)"
Southend-on-Sea Borough Council,http://opendatacommunities.org/id/unitary-authority/southend,ED Growth & Housing,Planning Services,5641,Southend Parking,21/06/2023,12061160,2.42,Parking whilst attending meeting with ABSS June 23,"Parking Lots, Meters, Garages (7523)"
Southend-on-Sea Borough Council,http://opendatacommunities.org/id/unitary-authority/southend,ED Growth & Housing,Planning Services,5641,Asda Superstore,21/06/2023,12061160,1.17,Refreshments for First Aid course June 23,Grocery Stores/Supermarkets (5411)
Southend-on-Sea Borough Council,http://opendatacommunities.org/id/unitary-authority/southend,ED Growth & Housing,Planning Services,5641,Asda Superstore,21/06/2023,12061160,18,Refreshments for First Aid course June 23,Grocery Stores/Supermarkets (5411)
Southend-on-Sea Borough Council,http://opendatacommunities.org/id/unitary-authority/southend,ED Adults & Communities,Cultural And Related Services,4256,Amznmktplace,21/06/2023,12061160,8.55,Sticker labels for books,Misc Speciality Retail (5999)
Southend-on-Sea Borough Council,http://opendatacommunities.org/id/unitary-authority/southend,ED Adults & Communities,Cultural And Related Services,4120,Sq *royal Pavilion Southe,21/06/2023,12061160,320,buffet for Mayor and councillors for Pier of the year event,Misc Food Stores - Default (5499)
Southend-on-Sea Borough Council,http://opendatacommunities.org/id/unitary-authority/southend,"ED Strategy, Change & Governance",Central Services to the Public,7145,Stalbridge Linen S,22/06/2023,12061160,122.74,Laundry Services - Porters Civic House,Dry Cleaners (7216)
Southend-on-Sea Borough Council,http://opendatacommunities.org/id/unitary-authority/southend,ED Children & Public Health,Children And Education Services,3691,Travelodge Gb0000,22/06/2023,12061160,373.28,"family stayed in hotel, while house cleared due to hoarding situation. Agreed by TM",Travelodge (3615)
Southend-on-Sea Borough Council,http://opendatacommunities.org/id/unitary-authority/southend,ED Children & Public Health,Children And Education Services,3105,Www.Therange.Co.Uk,22/06/2023,12061160,21.99,Set of 4 gazebo weights,Misc Home Furnishing (5719)
Southend-on-Sea Borough Council,http://opendatacommunities.org/id/unitary-authority/southend,ED Children & Public Health,Children And Education Services,3105,Www.Therange.Co.Uk,22/06/2023,12061160,5.95,Set of 4 gazebo weights,Misc Home Furnishing (5719)
Southend-on-Sea Borough Council,http://opendatacommunities.org/id/unitary-authority/southend,ED Children & Public Health,Children And Education Services,3396,Starbucks Coffee,22/06/2023,12061160,10.1,MG and KB- CP visits.,Fast Food Restaurants (5814)
Southend-on-Sea Borough Council,http://opendatacommunities.org/id/unitary-authority/southend,ED Children & Public Health,Children And Education Services,3396,Starbucks Coffee,22/06/2023,12061160,9.15,MG lunch - CLA .,Fast Food Restaurants (5814)
Southend-on-Sea Borough Council,http://opendatacommunities.org/id/unitary-authority/southend,ED Children & Public Health,Children And Education Services,3396,Starbucks Coffee,22/06/2023,12061160,5.05,MG lunch - CLA .,Fast Food Restaurants (5814)
Southend-on-Sea Borough Council,http://opendatacommunities.org/id/unitary-authority/southend,ED Growth & Housing,Highways And Transport Services,5021,Amznmktplace,22/06/2023,12061160,319.99,Water flume for Belfairs Event - Leaky Dams - please code to C11147,Misc Speciality Retail (5999)
Southend-on-Sea Borough Council,http://opendatacommunities.org/id/unitary-authority/southend,"ED Strategy, Change & Governance",Central Services to the Public,7096,Amznmktplace,22/06/2023,12061160,31.74,2 reams of bright yellow photocopy paper used for planning notices,Misc Speciality Retail (5999)
Southend-on-Sea Borough Council,http://opendatacommunities.org/id/unitary-authority/southend,ED Children & Public Health,Children And Education Services,3396,Starbucks Coffee,22/06/2023,12061160,7.55,Young person open to Early Help AIPT - Drinks purchased,Fast Food Restaurants (5814)
Southend-on-Sea Borough Council,http://opendatacommunities.org/id/unitary-authority/southend,ED Adults & Communities,Cultural And Related Services,4055,The Frame Shop,22/06/2023,12061160,100,Framing services for REDACTED PERSONAL DATA exhibition,Misc Speciality Retail (5999)
Southend-on-Sea Borough Council,http://opendatacommunities.org/id/unitary-authority/southend,ED Children & Public Health,Public Health,8700,Amznmktplace,22/06/2023,12061160,159.99," Purchase of a gazebo, for community events.",Misc Speciality Retail (5999)
Southend-on-Sea Borough Council,http://opendatacommunities.org/id/unitary-authority/southend,ED Children & Public Health,Children And Education Services,3183,Amznmktplace,22/06/2023,12061160,68.92,"A3 Envelopes for Ursula for bundles of flyers, Lyreco did not have what we needed.",Misc Speciality Retail (5999)
Southend-on-Sea Borough Council,http://opendatacommunities.org/id/unitary-authority/southend,ED Adults & Communities,Adult Social Care,1231,Tesco Stores 3060,22/06/2023,12061160,49.25,Tesco food shop for person supported within adult social care. Ultimately this money will be reclaim *,Grocery Stores/Supermarkets (5411)
Southend-on-Sea Borough Council,http://opendatacommunities.org/id/unitary-authority/southend,ED Adults & Communities,Cultural And Related Services,4134,Team Sport Karting,22/06/2023,12061160,493,Activities for Enrichment Programme,Member Clubs/Sport/Rec/Golf (7997)
Southend-on-Sea Borough Council,http://opendatacommunities.org/id/unitary-authority/southend,ED Growth & Housing,Planning Services,5641,Tesco Stores 3177,22/06/2023,12061160,2.7,Refreshments for Self Employment Course 23/06/23,Grocery Stores/Supermarkets (5411)
Southend-on-Sea Borough Council,http://opendatacommunities.org/id/unitary-authority/southend,ED Growth & Housing,Planning Services,5641,Tesco Stores 3177,22/06/2023,12061160,12.92,Refreshments for Self Employment Course 23/06/23,Grocery Stores/Supermarkets (5411)
Southend-on-Sea Borough Council,http://opendatacommunities.org/id/unitary-authority/southend,ED Children & Public Health,Children And Education Services,3396,Asda Superstore,22/06/2023,12061160,8.8,ingredients for direct work with young person.,Grocery Stores/Supermarkets (5411)
Southend-on-Sea Borough Council,http://opendatacommunities.org/id/unitary-authority/southend,ED Children & Public Health,Children And Education Services,3471,Kingpins Bowl,22/06/2023,12061160,180,Deposit paid for summer holiday HAF programme trip to Kingpins bowling for 30 young people ages 8 t *,Bowling Alleys (7933)
Southend-on-Sea Borough Council,http://opendatacommunities.org/id/unitary-authority/southend,ED Adults & Communities,Cultural And Related Services,4120,Wilko Retail Limited,22/06/2023,12061160,13,Materials for work on the pier,Misc Gen Merchandise - Def (5399)
Southend-on-Sea Borough Council,http://opendatacommunities.org/id/unitary-authority/southend,ED Adults & Communities,Cultural And Related Services,4120,Amznmktplace,23/06/2023,12061160,11.94,materials for use on the pier,Misc Speciality Retail (5999)
Southend-on-Sea Borough Council,http://opendatacommunities.org/id/unitary-authority/southend,ED Adults & Communities,Cultural And Related Services,4256,Amznmktplace,23/06/2023,12061160,299.9,Portable induction loops for use at events and in branch libraries,Misc Speciality Retail (5999)
Southend-on-Sea Borough Council,http://opendatacommunities.org/id/unitary-authority/southend,ED Finance & Resources,Central Services to the Public,7165,Stgcoach/Ctylink,23/06/2023,12061160,3.5,Park and ride - Cambridge - ACES CPD event,Bus Lines/Charter/Tour (4131)
Southend-on-Sea Borough Council,http://opendatacommunities.org/id/unitary-authority/southend,ED Children & Public Health,Children And Education Services,3105,Www.Argos.Co.Uk,23/06/2023,12061160,7.99,1 SD card for camera,Department Stores (5311)
Southend-on-Sea Borough Council,http://opendatacommunities.org/id/unitary-authority/southend,ED Children & Public Health,Children And Education Services,3030,Asda Superstore,23/06/2023,12061160,2.2,Resources for Family Centre sessions,Grocery Stores/Supermarkets (5411)
Southend-on-Sea Borough Council,http://opendatacommunities.org/id/unitary-authority/southend,ED Children & Public Health,Children And Education Services,3030,Asda Superstore,23/06/2023,12061160,17.78,Resources for Family Centre sessions,Grocery Stores/Supermarkets (5411)
Southend-on-Sea Borough Council,http://opendatacommunities.org/id/unitary-authority/southend,ED Children & Public Health,Children And Education Services,3396,Starbucks Coffee,23/06/2023,12061160,5.5,Lunch with SG- CIN .,Fast Food Restaurants (5814)
Southend-on-Sea Borough Council,http://opendatacommunities.org/id/unitary-authority/southend,ED Children & Public Health,Children And Education Services,3396,Starbucks Coffee,23/06/2023,12061160,9.5,Lunch with SG- CIN .,Fast Food Restaurants (5814)
Southend-on-Sea Borough Council,http://opendatacommunities.org/id/unitary-authority/southend,ED Children & Public Health,Children And Education Services,3396,Jd Sports Fashion Plc,23/06/2023,12061160,115.2,Trainers for looked after child CH.,Sports/Riding Apparel Store (5655)
Southend-on-Sea Borough Council,http://opendatacommunities.org/id/unitary-authority/southend,ED Children & Public Health,Children And Education Services,3441,McDonalds,23/06/2023,12061160,4.58,Refreshments for young person as positive activity,Fast Food Restaurants (5814)
Southend-on-Sea Borough Council,http://opendatacommunities.org/id/unitary-authority/southend,ED Children & Public Health,Children And Education Services,3441,McDonalds,23/06/2023,12061160,5.27,Refreshments for young person as positive activity,Fast Food Restaurants (5814)
Southend-on-Sea Borough Council,http://opendatacommunities.org/id/unitary-authority/southend,ED Adults & Communities,Cultural And Related Services,4055,Sainsburys S/mkts,23/06/2023,12061160,2.8,Kitchen Supplies,Grocery Stores/Supermarkets (5411)
Southend-on-Sea Borough Council,http://opendatacommunities.org/id/unitary-authority/southend,ED Adults & Communities,Cultural And Related Services,4055,Sainsburys S/mkts,23/06/2023,12061160,6.85,Kitchen Supplies,Grocery Stores/Supermarkets (5411)
Southend-on-Sea Borough Council,http://opendatacommunities.org/id/unitary-authority/southend,ED Adults & Communities,Cultural And Related Services,4055,Trainline,23/06/2023,12061160,24.19,Cost of freelancers train fair.,Passenger Railways (4112)
Southend-on-Sea Borough Council,http://opendatacommunities.org/id/unitary-authority/southend,ED Adults & Communities,Cultural And Related Services,4055,Hobbycraft Southend,23/06/2023,12061160,24.4,Materials for leigh folk festival stall,Artist/Craft Shops (5970)
Southend-on-Sea Borough Council,http://opendatacommunities.org/id/unitary-authority/southend,ED Children & Public Health,Children And Education Services,3290,Starbucks Coffee,23/06/2023,12061160,8.25,Drink for young person on visit,Fast Food Restaurants (5814)
Southend-on-Sea Borough Council,http://opendatacommunities.org/id/unitary-authority/southend,"ED Strategy, Change & Governance",Central Services to the Public,2190,Studio 2000 Photog,23/06/2023,12061160,152.2,photos for Citizenship Ceremonies,Camera & Photo Supply Store (5946)
Southend-on-Sea Borough Council,http://opendatacommunities.org/id/unitary-authority/southend,ED Children & Public Health,Children And Education Services,3396,McDonalds,23/06/2023,12061160,2.51,Positive Activity - Food for IC,Fast Food Restaurants (5814)
Southend-on-Sea Borough Council,http://opendatacommunities.org/id/unitary-authority/southend,ED Children & Public Health,Children And Education Services,3396,McDonalds,23/06/2023,12061160,5.98,Positive Activity - Food for IC,Fast Food Restaurants (5814)
Southend-on-Sea Borough Council,http://opendatacommunities.org/id/unitary-authority/southend,ED Children & Public Health,Children And Education Services,3471,Amznmktplace,23/06/2023,12061160,7.99,Border edge for new art display board at SYC in ther MPR to display children's art work.,Misc Speciality Retail (5999)
Southend-on-Sea Borough Council,http://opendatacommunities.org/id/unitary-authority/southend,ED Children & Public Health,Children And Education Services,3471,Amznmktplace,23/06/2023,12061160,15.99,Velcro tape to attach children's artwork to the covered art board in the MPR at SYC.,Misc Speciality Retail (5999)
Southend-on-Sea Borough Council,http://opendatacommunities.org/id/unitary-authority/southend,ED Adults & Communities,Cultural And Related Services,4120,Amznmktplace,23/06/2023,12061160,10.88,Materials for use on the pier,Misc Speciality Retail (5999)
Southend-on-Sea Borough Council,http://opendatacommunities.org/id/unitary-authority/southend,ED Growth & Housing,Planning Services,5641,Linkedin Ads 9172665524,24/06/2023,12061160,27.28,LinkedIn Advert - Employer Engagement event July 2023,Advertising Services (7311)
Southend-on-Sea Borough Council,http://opendatacommunities.org/id/unitary-authority/southend,ED Adults & Communities,Cultural And Related Services,4055,Sainsburys S/mkts,24/06/2023,12061160,19.75,Refreshments for REDACTED PERSONAL DATA opening,Grocery Stores/Supermarkets (5411)
Southend-on-Sea Borough Council,http://opendatacommunities.org/id/unitary-authority/southend,ED Adults & Communities,Cultural And Related Services,4055,Twenty One,24/06/2023,12061160,100,Pizza for REDACTED PERSONAL DATA opening event,Fast Food Restaurants (5814)
Southend-on-Sea Borough Council,http://opendatacommunities.org/id/unitary-authority/southend,ED Adults & Communities,Cultural And Related Services,4055,Sq *labriz Food,24/06/2023,12061160,28,Food for myself and 2 colleagues whilst working leigh folk festival from a street shop vender.,Fast Food Restaurants (5814)
Southend-on-Sea Borough Council,http://opendatacommunities.org/id/unitary-authority/southend,ED Adults & Communities,Cultural And Related Services,4200,Amznmktplace,25/06/2023,12061160,21.95,Equipment for Parks Management Team,Misc Speciality Retail (5999)
Southend-on-Sea Borough Council,http://opendatacommunities.org/id/unitary-authority/southend,ED Children & Public Health,Children And Education Services,3105,Amznbusiness,25/06/2023,12061160,3.95,SD card reader,Misc Speciality Retail (5999)
Southend-on-Sea Borough Council,http://opendatacommunities.org/id/unitary-authority/southend,ED Children & Public Health,Children And Education Services,3030,Amznmktplace,25/06/2023,12061160,26.89,grow bags for friars allotment,Misc Speciality Retail (5999)
Southend-on-Sea Borough Council,http://opendatacommunities.org/id/unitary-authority/southend,ED Children & Public Health,Children And Education Services,3030,Amznmktplace,25/06/2023,12061160,94.95,summer fun days x 3 - wristbands for children to be issued when attend incase go missing,Misc Speciality Retail (5999)
Southend-on-Sea Borough Council,http://opendatacommunities.org/id/unitary-authority/southend,ED Growth & Housing,Planning Services,5641,Facebk *px7zrqt7c2,25/06/2023,12061160,100,Advertising June and July sessions on FB,Advertising Services (7311)
Southend-on-Sea Borough Council,http://opendatacommunities.org/id/unitary-authority/southend,ED Adults & Communities,Cultural And Related Services,4256,Booker Ltd - 38577234,26/06/2023,12061160,60.95,Drinks for retail offer for the FOrum & Kent Elms,Grocery Stores/Supermarkets (5411)
Southend-on-Sea Borough Council,http://opendatacommunities.org/id/unitary-authority/southend,ED Children & Public Health,Children And Education Services,3455,Amznmktplace,26/06/2023,12061160,23.82,2 books requested by the Adoption Team to support adoptive families,Misc Speciality Retail (5999)
Southend-on-Sea Borough Council,http://opendatacommunities.org/id/unitary-authority/southend,ED Children & Public Health,Children And Education Services,3030,Asda Superstore,26/06/2023,12061160,16.45,Resources for Family Centre sessions,Grocery Stores/Supermarkets (5411)
Southend-on-Sea Borough Council,http://opendatacommunities.org/id/unitary-authority/southend,ED Children & Public Health,Children And Education Services,3030,Asda Superstore,26/06/2023,12061160,6.65,Resources for Family Centre sessions,Grocery Stores/Supermarkets (5411)
Southend-on-Sea Borough Council,http://opendatacommunities.org/id/unitary-authority/southend,ED Children & Public Health,Children And Education Services,3030,Asda Superstore,26/06/2023,12061160,3.3,Snacks for family centres,Grocery Stores/Supermarkets (5411)
Southend-on-Sea Borough Council,http://opendatacommunities.org/id/unitary-authority/southend,ED Children & Public Health,Children And Education Services,3030,Asda Superstore,26/06/2023,12061160,7.15,Snacks for family centres,Grocery Stores/Supermarkets (5411)
Southend-on-Sea Borough Council,http://opendatacommunities.org/id/unitary-authority/southend,ED Growth & Housing,Highways And Transport Services,5021,Amazon.Co.Uk,26/06/2023,12061160,31.95,Card and velcro for event at Belfairs - please code to C11147,Other Direct Marketers (5969)
Southend-on-Sea Borough Council,http://opendatacommunities.org/id/unitary-authority/southend,ED Children & Public Health,Children And Education Services,3030,Amznmktplace,26/06/2023,12061160,34.49,bulk toilet rolls for Friars family centre,Misc Speciality Retail (5999)
Southend-on-Sea Borough Council,http://opendatacommunities.org/id/unitary-authority/southend,ED Adults & Communities,Cultural And Related Services,7510,Https Www Redstoneuk Com,26/06/2023,12061160,73.2,Inner tubes for workshop with manager on annual leave.,Automotive Tire Stores (5532)
Southend-on-Sea Borough Council,http://opendatacommunities.org/id/unitary-authority/southend,ED Children & Public Health,Children And Education Services,3396,McDonalds,26/06/2023,12061160,2.99,Drink for HP during positive activity,Fast Food Restaurants (5814)
Southend-on-Sea Borough Council,http://opendatacommunities.org/id/unitary-authority/southend,"ED Strategy, Change & Governance",Central Services to the Public,7130,Amznbusiness,26/06/2023,12061160,14.98,USB-C Charge Cable x3 with urgent deliver due to delay in earlier order which is currently outstandi *,Misc Speciality Retail (5999)
Southend-on-Sea Borough Council,http://opendatacommunities.org/id/unitary-authority/southend,ED Children & Public Health,Children And Education Services,3471,Amznmktplace,26/06/2023,12061160,94.95,60li cool box to use for summer holiday trips. Paid for using HAF money.,Misc Speciality Retail (5999)
Southend-on-Sea Borough Council,http://opendatacommunities.org/id/unitary-authority/southend,ED Adults & Communities,Cultural And Related Services,4200,Amznmktplace,27/06/2023,12061160,29.08,Cleaning Supplies for Chalkwell Park Office,Misc Speciality Retail (5999)
Southend-on-Sea Borough Council,http://opendatacommunities.org/id/unitary-authority/southend,ED Finance & Resources,Children And Education Services,3223,Amznmktplace,27/06/2023,12061160,76.23,Resources for ASYE recognising excellence day to celebrate the NQSWs finishing their ASYE (goody bag *,Misc Speciality Retail (5999)
Southend-on-Sea Borough Council,http://opendatacommunities.org/id/unitary-authority/southend,ED Adults & Communities,Cultural And Related Services,4030,Hobbycraft Trading Limite,26/06/2023,12061160,80,Materials for Anglo Saxon event activities at Priory Museum,Artist/Craft Shops (5970)
Southend-on-Sea Borough Council,http://opendatacommunities.org/id/unitary-authority/southend,ED Adults & Communities,Cultural And Related Services,4200,Amznmktplace,27/06/2023,12061160,9.08,Cleaning supplies for Chalkwell Office,Misc Speciality Retail (5999)
Southend-on-Sea Borough Council,http://opendatacommunities.org/id/unitary-authority/southend,ED Children & Public Health,Children And Education Services,3791,Travelodge Gb0000,27/06/2023,12061160,634.89,REDACTED PERSONAL DATAy-family are NRPF & being housed by social care while assessment being completed.,Travelodge (3615)
Southend-on-Sea Borough Council,http://opendatacommunities.org/id/unitary-authority/southend,"ED Strategy, Change & Governance",Central Services to the Public,7096,Lyreco UK Limited,27/06/2023,12061160,23.5,Staples and small notepads for receptionWhite tac for civic 2 for putting up posters,Stationery Stores (5943)
Southend-on-Sea Borough Council,http://opendatacommunities.org/id/unitary-authority/southend,ED Adults & Communities,Cultural And Related Services,4030,Hobbycraft Southend,27/06/2023,12061160,-80,Credit Voucher Hobbycraft Southend - refund for materials purchased for Anglo Saxon event activities,Artist/Craft Shops (5970)
Southend-on-Sea Borough Council,http://opendatacommunities.org/id/unitary-authority/southend,ED Children & Public Health,Children And Education Services,3455,Www.Castlepoint.Gov.Uk,27/06/2023,12061160,307,This is for the hire of hall for Adoption Children's party. I asked for an invoice and they said th *,Govt Serv - Default (9399)
Southend-on-Sea Borough Council,http://opendatacommunities.org/id/unitary-authority/southend,ED Finance & Resources,Central Services to the Public,7180,Www.Ico.Org.Uk,27/06/2023,12061160,2900,Subscription of corporate Information Commissioners Office registration.,Govt Serv - Default (9399)
Southend-on-Sea Borough Council,http://opendatacommunities.org/id/unitary-authority/southend,ED Children & Public Health,Children And Education Services,3030,Asda Superstore,27/06/2023,12061160,19.63,Resources for Family Centre sessions,Grocery Stores/Supermarkets (5411)
Southend-on-Sea Borough Council,http://opendatacommunities.org/id/unitary-authority/southend,ED Children & Public Health,Children And Education Services,3396,McDonalds,27/06/2023,12061160,8.82,Young person food purchased open to Early help AIPT - FCK,Fast Food Restaurants (5814)
Southend-on-Sea Borough Council,http://opendatacommunities.org/id/unitary-authority/southend,ED Children & Public Health,Children And Education Services,3030,Amznmktplace,27/06/2023,12061160,16.73,bulk buy notepads for cambridge road family centre,Misc Speciality Retail (5999)
Southend-on-Sea Borough Council,http://opendatacommunities.org/id/unitary-authority/southend,ED Children & Public Health,Children And Education Services,3265,Www.Superp* Super Pizz,27/06/2023,12061160,29.69,Pizza ordered for fostering event,Caterers (5811)
Southend-on-Sea Borough Council,http://opendatacommunities.org/id/unitary-authority/southend,ED Finance & Resources,Children And Education Services,3223,Amznmktplace,27/06/2023,12061160,6.6,Resources for ASYE recognising excellence day to celebrate the NQSWs finishing their ASYE (goody bag *,Misc Speciality Retail (5999)
Southend-on-Sea Borough Council,http://opendatacommunities.org/id/unitary-authority/southend,ED Finance & Resources,Children And Education Services,3223,Amznmktplace,27/06/2023,12061160,10.99,Resources for ASYE recognising excellence day to celebrate the NQSWs finishing their ASYE (goody bag *,Misc Speciality Retail (5999)
Southend-on-Sea Borough Council,http://opendatacommunities.org/id/unitary-authority/southend,ED Finance & Resources,Children And Education Services,3223,Amznmktplace,27/06/2023,12061160,19.83,Resources for ASYE recognising excellence day to celebrate the NQSWs finishing their ASYE (goody bag *,Misc Speciality Retail (5999)
Southend-on-Sea Borough Council,http://opendatacommunities.org/id/unitary-authority/southend,ED Finance & Resources,Children And Education Services,3223,Amznmktplace,27/06/2023,12061160,46.2,Resources for ASYE recognising excellence day to celebrate the NQSWs finishing their ASYE (goody bag *,Misc Speciality Retail (5999)
Southend-on-Sea Borough Council,http://opendatacommunities.org/id/unitary-authority/southend,ED Children & Public Health,Children And Education Services,3290,Rectory Lane West,27/06/2023,12061160,7.5,Travel expense training and development day,"Parking Lots, Meters, Garages (7523)"
Southend-on-Sea Borough Council,http://opendatacommunities.org/id/unitary-authority/southend,ED Growth & Housing,Planning Services,5641,Royals Southend Car Pa,27/06/2023,12061160,4.8,Parking cost whilst running week 3 of the Self Employment Course June 2023,"Parking Lots, Meters, Garages (7523)"
Southend-on-Sea Borough Council,http://opendatacommunities.org/id/unitary-authority/southend,ED Adults & Communities,Cultural And Related Services,4120,Amznmktplace,27/06/2023,12061160,11.71,Saw for use on the pier,Misc Speciality Retail (5999)
Southend-on-Sea Borough Council,http://opendatacommunities.org/id/unitary-authority/southend,ED Adults & Communities,Cultural And Related Services,4245,Amznmktplace,27/06/2023,12061160,27.97,Equipment for visitor information,Misc Speciality Retail (5999)
Southend-on-Sea Borough Council,http://opendatacommunities.org/id/unitary-authority/southend,ED Children & Public Health,Children And Education Services,3030,Tesco Stores 3177,27/06/2023,12061160,24.67,snack resources for family centres,Grocery Stores/Supermarkets (5411)
